Workbook

Sheet Menu
B2: Hulpmaterialentool dakelementen
B3: Met behulp van deze tool kunt u bij eenvoudige zadel- of lessenaarsdaken bepalen welke
B4: en hoeveel bevestigers en profielen u nodig heeft bij de verwerking van de diverse types
B5: dakelementen
B6: Bij complexere dakconstructies geven wij u graag een projectspecifiek advies.
B7: Stuur hiervoor uw projectgegevens naar info@isobouw.nl
B9: Maak een productkeuze

Sheet SlimFix
B2: Hulpmaterialentool SlimFix dakelementen
B4: Met behulp van deze tool kunt u bij eenvoudige zadel- of lessenaarsdaken bepalen welke en hoeveel
B5: bevestigers en profielen u nodig heeft bij de verwerking van de diverse types SlimFix dakelementen
B6: Bij complexere dakconstructies geven wij u graag een projectspecifiek advies.
B7: Stuur hiervoor uw projectgegevens naar info@isobouw.nl
B9: Product
J10: Opnieuw selecteren bij typeverandering
B11: Type dakelement | D11: _Type | H11: RC-waarde
D12: Voor Solar-elementen verwijzen wij naar de verwerkingsvoorschriften op onze site
B14: Projectnaam (optioneel)
B16: Dakconstructie
J20: d | K20: dd
B28: Dakvlak 1: Alle velden invullen m.u.v.'gewicht PV-panelen' Dat veld is optioneel.
B30: Gebouwtype | D30: 1,2 of 3 bouwlagen (ééngezinswoning)
B32: Breedte in mm | G32: Lengte in mm
B35: Aantal oplegpunten
B41: Gewicht pannen in kg/m2 | G41: PV-panelen + plafond in kg/m2 | K41: (optioneel)
G43: Totaal aantal gelijksoortige | J43: Minimaal 1 invullen
B44: Dakhelling in graden | G44: dakvlakken | J44: 1
B46: Dakvlak 2 (indien van toepassing): Alle velden invullen m.u.v.'gewicht PV-panelen' Dat veld is optioneel.
B48: Gebouwtype | D48: 1,2 of 3 bouwlagen (ééngezinswoning)
B50: Breedte in mm | G50: Lengte in mm
B52: Aantal oplegpunten
B54: Gewicht pannen in kg/m2 | G54: PV-panelen + plafond in kg/m2 | K54: (optioneel)
G56: Totaal aantal gelijksoortige | J56: Minimaal 1 invullen (indien van toepassing)
B57: Dakhelling in graden | G57: dakvlakken | J57: 1
B59: Bevestigingsmethode
B61: Dakvlak 1: | F61: Bevestigers | I61: Aantal
B62: =VLOOKUP(calcu!$C$10,' lijst slimfix'!C6:AA60,23) ->  | F62: =VLOOKUP(calcu!$C$10,' lijst slimfix'!C6:X60,4) ->  | H62: =IF(OR($B$62="Door de tengel t.p.v. elke onderliggende gording/muurplaat:",$B$62="T.p.v. elke onderliggende gording/muurplaat:")," ","incl. volgplaatjes") ->  | I62: =IF($D$32=0,0,VLOOKUP(calcu!$C$10,' lijst slimfix'!C6:AA60,24)) -> 0 | J62: per oplegging
B63: =VLOOKUP(calcu!$C$10,' lijst slimfix'!C6:AA60,25) ->  | F63: =IF($B$63=" ","",VLOOKUP(calcu!$C$10,' lijst slimfix'!C6:X60,9)) ->  | H63: =IF(OR($B$63=" ",$B$63="Extra t.p.v. de plaatvaste oplegging/muurplaat:")," ","incl. volgplaatjes") ->  | I63: =IF($B$63=" "," ",VLOOKUP(calcu!$C$10,' lijst slimfix'!C6:X60,12)) ->  | J63: =IF($B$63=" "," ","per element") -> 
B65: =IF($D$50=0," ","Dakvlak 2") -> 
B66: =IF($D$50=0," ",VLOOKUP(calcu!$C$10,' lijst slimfix'!C6:AA60,23)) ->  | F66: =IF($D$50=0," ",VLOOKUP(calcu!$C$10,' lijst slimfix'!C6:X60,4)) ->  | H66: =IF(OR($B$66="Door de tengel t.p.v. elke onderliggende gording/muurplaat:",$B$66=" ")," ","incl. volgplaatjes") ->  | I66: =IF($D$50=0," ",VLOOKUP(calcu!$C$10,' lijst slimfix'!C6:AA60,24)) ->  | J66: =IF($D$50=0," ","per oplegging") -> 
B67: =IF($D$50=0," ",VLOOKUP(calcu!$C$10,' lijst slimfix'!C6:AA60,25)) ->  | F67: =IF($B$67=" "," ",VLOOKUP(calcu!$C$10,' lijst slimfix'!C6:X60,9)) ->  | H67: =IF($B$67=" "," ","incl. volgplaatjes") ->  | I67: =IF($B$67=" "," ",VLOOKUP(calcu!$C$10,' lijst slimfix'!C6:X60,13)) ->  | J67: =IF($B$67=" "," ","per element") -> 
B69: Totale hoeveelheid benodigde bevestigers en hulpmaterialen
B71: Product | D71: Eenheid | G71: Aantal
B72: =VLOOKUP(calcu!$C$10,' lijst slimfix'!C6:V60,16) ->  | D72: =IF(B72=0," ",VLOOKUP(calcu!$C$10,' lijst slimfix'!C6:V60,5)) ->  | E72: =IF(B72=0," ","st/ds") ->  | G72: =IF(B72=0," ",VLOOKUP(calcu!$C$10,' lijst slimfix'!C6:V60,17)) ->  | H72: =IF(B72=0," ","ds") -> 
B73: =VLOOKUP(calcu!$C$10,' lijst slimfix'!C6:V60,18) ->  | D73: =IF(B73=0," ",VLOOKUP(calcu!$C$10,' lijst slimfix'!C6:V60,10)) ->  | E73: =IF(B73=0," ","st/ds") ->  | G73: =IF(B73=0," ",VLOOKUP(calcu!$C$10,' lijst slimfix'!C6:V60,19)) ->  | H73: =IF(B73=0," ","ds") -> 
B74: =IF(G74=0," ","Volgplaatjes") ->  | D74: =IF(G74=0," ",100) ->  | E74: =IF(G74=0," ","st/ds") ->  | G74: =VLOOKUP(calcu!$C$10,' lijst slimfix'!C6:X60,20) ->  | H74: =IF(G74=0," ","ds") -> 
B75: =VLOOKUP(calcu!$C$10,' lijst slimfix'!C6:X60,21) ->  | G75: =VLOOKUP(calcu!$C$10,' lijst slimfix'!C6:X60,22) ->  | H75: m1
B77: Aan de uitkomsten van de berekeningen kunnen geen rechten worden ontleend
B78: Bij de berekeningen is geen rekening gehouden met de toepassing van stuiknaden en/of elementen met kopgeveloverstekvoorziening

Sheet SlimFix Reno+
B2: Hulpmaterialentool SlimFix Reno+ elementen
B4: Met behulp van deze tool kunt u bij eenvoudige zadel- of lessenaarsdaken bepalen welke en hoeveel
B5: bevestigers en profielen (optioneel) u nodig heeft bij de verwerking van de SlimFix Reno+ elementen
B6: Bij complexere dakconstructies geven wij u graag een projectspecifiek advies.
B7: Stuur hiervoor uw projectgegevens naar info@isobouw.nl
B9: Product
B11: Type dakelement | D11: SlimFix Reno+ | H11: RC-waarde
B13: Projectnaam (optioneel)
B15: Dakconstructie
J19: d | K19: dd
B27: Dakvlak 1: Alle velden invullen.
B29: Breedte in mm | G29: Lengte in mm
B32: Aantal oplegpunten/gordingen
B35: Totaal aantal gelijksoortige | D35: Minimaal 1 invullen
B36: dakvlakken | D36: 1
B38: Dakvlak 2 (indien van toepassing): Alle velden invullen.
B40: Breedte in mm | G40: Lengte in mm
B42: Aantal oplegpunten/gordingen
B44: Totaal aantal gelijksoortige | D44: Minimaal 1 invullen (indien van toepassing)
B45: dakvlakken | D45: 1
B47: Bevestigingsmethode
B49: Dakvlak 1: | F49: Bevestigers | I49: Aantal
B50: Door de tengel t.p.v. elke onderliggende gording | F50: =VLOOKUP('lijst reno'!M5,'lijst reno'!C5:F13,4) ->  | I50: 3 | J50: per oplegging
B52: =IF($D$40=0," ","Dakvlak 2") -> 
B53: =IF($D$40=0," ","Door de tengel t.p.v. elke onderliggende gording") ->  | F53: =IF($D$40=0," ",VLOOKUP('lijst reno'!M5,'lijst reno'!C5:F13,7)) ->  | I53: =IF($D$40=0," ",3) ->  | J53: =IF($D$40=0," ","per oplegging") -> 
B55: Totale hoeveelheid benodigde bevestigers en hulpmaterialen
B57: Product | D57: Eenheid | G57: Aantal
B58: Schroef | C58: =F50 ->  | D58: 100 st./ds | G58: =CEILING('lijst reno'!I5/100,1) -> 0 | H58: =IF(C58=0," ","ds") -> 
B60: Optioneel:
B61: SlimFix Reno naadprofiel 3 m | D61: 8 st./bundel | G61: =CEILING(((J29/1000)*'lijst reno'!G5)+((J40/1000)*'lijst reno'!H5),1) -> 0 | H61: m1 oftewel | I61: =CEILING(G61/8,1) -> 0 | J61: bundel
B63: =VLOOKUP('lijst reno'!M5,'lijst reno'!C5:K13,8) ->  | D63: =IF(B63=0," ","6 st./doos*") ->  | G63: =IF(B63=0," ",CEILING(((D29*D36)+(D40*D45))/11700,1)) ->  | H63: =IF(B63=0," ","ds") -> 
B64: =VLOOKUP('lijst reno'!M5,'lijst reno'!C5:K13,9) ->  | D64: =IF(B64=0," ","4 st./doos**") ->  | G64: =IF(B64=0," ","aantal/toepassing afhankelijk van project") -> 
B65: Aan de uitkomsten van de berekeningen kunnen geen rechten worden ontleend
B67: =IF(B63=0," ",'lijst reno'!A15) -> 

Sheet SlimFix RenoTwin
B2: Hulpmaterialentool SlimFix RenoTwin elementen
B4: Met behulp van deze tool kunt u bij eenvoudige zadel- of lessenaarsdaken bepalen welke en hoeveel
B5: bevestigers en profielen (optioneel) u nodig heeft bij de verwerking van de SlimFix RenoTwin elementen
B6: Bij complexere dakconstructies geven wij u graag een projectspecifiek advies.
B7: Stuur hiervoor uw projectgegevens naar info@isobouw.nl
B9: Product
B11: Type dakelement | D11: SlimFix RenoTwin | H11: Type*
D12: * Dit is de isolatiedikte. De bijbehorende Rc-waarde is mede afhankelijk van de onderconstructie (eventuele aanwezigheid oude
D13: isolatielaag en aanwezige luchtspouw). Zie hieronder voor de daarbij passende Rc-waarde.
D14: Voor Solar-elementen verwijzen wij naar de verwerkingsvoorschriften op onze site
B16: Projectnaam (optioneel)
B18: Dakconstructie
J22: d | K22: dd
B30: Dakvlak 1: Alle velden invullen.
B32: Breedte in mm | G32: Lengte in mm
B35: Aantal oplegpunten/gordingen
B40: Hoogte luchtspouw in mm | D40: _kies
B41: (Ruimte tussen onderconstructie en RenoTwin) | G41: Totaal aantal gelijksoortige | J41: Minimaal 1 invullen
B42: Dikte bestaand dakpakket in mm | D42: _kies | G42: dakvlakken | J42: 1
B43: (dakbeschot + eventuele bestaande isolatie)
B45: Uitkomst bijbehorende RC-waarde | D45: =IF(D42="_kies"," ",VLOOKUP(('lijst renotwin'!N5&D40&D42),'lijst renotwin'!B28:F192,5)) -> 
B47: Is er sprake van een gootoverstek | D47: _kies
B49: Dakvlak 2 (indien van toepassing): Alle velden invullen.
B51: Breedte in mm | G51: Lengte in mm
B53: Aantal oplegpunten/gordingen
B55: Hoogte luchtspouw in mm | D55: _kies
B56: (Ruimte tussen onderconstructie en RenoTwin) | G56: Totaal aantal gelijksoortige | J56: Minimaal 1 invullen (indien van toepassing)
B57: Dikte bestaand dakpakket in mm | D57: _kies | G57: dakvlakken | J57: 1
B58: (dakbeschot + eventuele bestaande isolatie)
B60: Uitkomst bijbehorende RC-waarde | D60: =IF(D57="_kies"," ",VLOOKUP(('lijst renotwin'!N5&D55&D57),'lijst renotwin'!B28:F192,5)) -> 
B62: Is er sprake van een gootoverstek | D62: _kies
B64: Bevestigingsmethode
B66: Dakvlak 1: | F66: Bevestigers | I66: Aantal
B67: Door de tengel t.p.v. elke onderliggende gording | F67: =IF(D42="_kies"," ",VLOOKUP(('lijst renotwin'!N5&D40&D42),'lijst renotwin'!B28:E192,4)) ->  | G67: RenoTwin schroef | I67: 3 | J67: per oplegging
B69: =IF(D47="ja","T.b.v. gootoverstek:"," ") -> 
B70: =IF(D47="ja","67° bevestiging door de tengel t.p.v. de muurplaat "," ") ->  | F70: =IF(D47="ja",VLOOKUP('lijst renotwin'!N5,'lijst renotwin'!C5:L16,10)," ") ->  | G70: =IF(D47="ja","RenoTwin schroef"," ") ->  | I70: =IF(D47="ja",3," ") ->  | J70: =IF(D47="ja","per element"," ") -> 
G71: =IF(D47="ja",VLOOKUP('lijst renotwin'!N5,'lijst renotwin'!C5:L16,9)," ") ->  | H71: =IF(D47="ja","mm afstand tot horiz. schroef)"," ") -> 
B72: =IF($D$51=0," ","Dakvlak 2") -> 
B73: =IF($D$51=0," ","Door de tengel t.p.v. elke onderliggende gording") ->  | F73: =IF(D51=0," ",L73) ->  | G73: =IF(D51=0," ","RenoTwin schroef") ->  | I73: =IF($D$51=0," ",3) ->  | J73: =IF($D$51=0," ","per oplegging") ->  | L73: =IF(D57="_kies"," ",VLOOKUP(('lijst renotwin'!N5&D55&D57),'lijst renotwin'!B28:E342,4)) -> 
B75: =IF(D62="ja","T.b.v. gootoverstek:"," ") -> 
B76: =IF(D62="ja","67° bevestiging in de muurplaat "," ") ->  | F76: =IF(D62="ja",VLOOKUP('lijst renotwin'!N5,'lijst renotwin'!C5:L16,10)," ") ->  | G76: =IF(D62="ja","RenoTwin schroef"," ") ->  | I76: =IF(D62="ja",3," ") ->  | J76: =IF(D62="ja","per element"," ") -> 
G77: =IF(D62="ja",VLOOKUP('lijst renotwin'!N5,'lijst renotwin'!C5:L16,9)," ") ->  | H77: =IF(D62="ja","mm afstand tot horiz. schroef)"," ") -> 
B79: Totale hoeveelheid benodigde bevestigers en hulpmaterialen
B81: Product | D81: Eenheid | G81: Aantal
B82: RenoTwin schroef | C82: =F67 ->  | D82: =VLOOKUP(C82,'lijst renotwin'!J28:M39,2) ->  | G82: =CEILING('lijst renotwin'!F5/VLOOKUP(C82,'lijst renotwin'!J28:M39,3),1) ->  | H82: =IF(C82=0," ","ds t.b.v. dakvlak 1") -> ds t.b.v. dakvlak 1
B83: =IF(D51=0," ","RenoTwin schroef") ->  | C83: =IF(B83= " "," ",$L$73) ->  | D83: =IF(B83=" "," ",VLOOKUP(C83,'lijst renotwin'!J28:M39,2)) ->  | G83: =IF(B83=" "," ",CEILING('lijst renotwin'!G5/VLOOKUP(C83,'lijst renotwin'!J28:M39,3),1)) ->  | H83: =IF(C83=" "," ","ds t.b.v. dakvlak 2") -> 
B85: =IF(OR(D47="ja",D62="ja"),"T.b.v. gootoverstek"," ") -> 
B86: =IF(C86=" "," ","RenoTwin schroef") ->  | C86: =F70 ->  | D86: =IF(B86=" "," ",VLOOKUP(C86,'lijst renotwin'!J28:M39,2)) ->  | G86: =IF(B86=" "," ",CEILING(('lijst renotwin'!D5+'lijst renotwin'!E5)*3/VLOOKUP(C86,'lijst renotwin'!J28:M39,3),1)) ->  | H86: =IF(C86=" "," ","ds") -> 
B88: Optioneel:
B89: SlimFix Reno naadprofiel 3 m | D89: 8 st./bundel | G89: =CEILING(((J32/1000)*'lijst renotwin'!D5)+((J51/1000)*'lijst renotwin'!E5),1) -> 0 | H89: m1 oftewel | I89: =CEILING(G89/8,1) -> 0 | J89: bundel
B90: Voldraadschroef 6x120 t.b.v. kopgeveloverstek | D90: 100 st./ds | G90: =CEILING(((D32/1000*4*2*J42)+(D51/1000*4*2*J57))/100,1) -> 0 | H90: ds (flexoptie bij een kopgeveloverstekvoorziening,
H91: volume gebas.op toepassing bij iedere boeiboord)
B92: =IF(J11>=5,"Schroefhulp"," ") ->  | G92: =IF(B92=" "," ",1) ->  | H92: =IF(B92=" "," ","st.") -> 
B94: =VLOOKUP('lijst renotwin'!N5,'lijst renotwin'!C5:I16,6) ->  | D94: =IF(B94=0," ","6 st./doos*") ->  | G94: =CEILING(((D32*J42)+(D51*J57))/11700,1) -> 0 | H94: =IF(B94=0," ","ds") -> 
B95: =VLOOKUP('lijst renotwin'!N5,'lijst renotwin'!C5:I16,7) ->  | D95: =IF(B95=0," ","4 st./doos**") ->  | G95: aantal/toepassing afhankelijk van project
B96: Aan de uitkomsten van de berekeningen kunnen geen rechten worden ontleend
B98: =IF(B94=0," ",'lijst reno'!A15) -> 

Sheet calcu (hidden)
A2: Dakvlak 1 | M2: Dakvlak 2 | X2: Rapport SHR 2023 | Y2: rekenwaarden afschuifsterkte
X3: rapp.code: 22.0675 | Y3: FV,Rd,blijvend [kN] | AA3: FV,Rd,kort [kN]
X4: 2023-08-10 | Y4: schroef Ø 6 | Z4: schroef Ø 8 | AA4: schroef Ø 6 | AB4: schroef Ø 8
B5: SNEEUW: | D5: NEN-EN 1991-1-3+C1:2011/NB:2011 | N5: SNEEUW: | P5: NEN-EN 1991-1-3+C1:2011/NB:2011 | X5: 3 mm sp.pl. | Y5: 0.36 | Z5: 0.51 | AA5: 0.75 | AB5: 1.04
A6: Daktype: | B6: Zadel / lessenaarsdak (sneeuw wordt NIET belet van dak te glijden";"sneeuw wordt belet van dak te glijden) | M6: Daktype: | N6: Zadel / lessenaarsdak (sneeuw wordt NIET belet van dak te glijden";"sneeuw wordt belet van dak te glijden) | X6: 8 mm sp.pl. | Y6: 0.85 | Z6: 1.07 | AA6: 1.75 | AB6: 2.2
B7: μ1 = | C7: =IF(AND(C11>=0,C11<=30),0.8,IF(AND(C11>30,C11<60),(60-C11)/30*0.8,IF(AND(C11>=60,C11<=90),0,IF(C11>90," hoek ???",IF(C11<0," hoek ???"," "))))) -> 0.80 | E7: Ce = | F7: 1 | G7: sk50 = | H7: =0.7*((1-(H8*SQRT(6)/PI()*(LN(-LN(1-1/50))+0.57222)))/(1+2.5923*H8)) -> 0.7 | I7: kN/m2 | N7: μ1 = | O7: =IF(AND(O11>=0,O11<=30),0.8,IF(AND(O11>30,O11<60),(60-O11)/30*0.8,IF(AND(O11>=60,O11<=90),0,IF(O11>90," hoek ???",IF(O11<0," hoek ???"," "))))) -> 0.80 | Q7: Ce = | R7: 1 | S7: sk50 = | T7: =0.7*((1-(T8*SQRT(6)/PI()*(LN(-LN(1-1/50))+0.57222)))/(1+2.5923*T8)) -> 0.7 | U7: kN/m2 | X7: 3 mm sp.pl + XT rib | Y7: 1.15 | AA7: 1.72
B8: s = μi Ce Ct sk = | C8: =C7*F7*F8*H7 -> 0.56 | D8: kN/m2 | E8: Ct = | F8: 1 | G8: V = | H8: 0.8 | N8: s = μi Ce Ct sk = | O8: =O7*R7*R8*T7 -> 0.56 | P8: kN/m2 | Q8: Ct = | R8: 1 | S8: V = | T8: 0.8 | X8: 8 mm sp.pl + XT rib | Y8: 1.34 | AA8: 2.01
F9: NEN-EN 1995-1-1:2005/NB:2011 art.2.3.1.2 | R9: NEN-EN 1995-1-1:2005/NB:2011 art.2.3.1.2
B10: element : | C10: =SlimFix!D11&" "&SlimFix!J11 -> _Type | F10: Belastingsduurklasse | J10: Belastingsvoorbeelden | N10: element : | O10: =SlimFix!D11&" "&SlimFix!J11 -> _Type | R10: Belastingsduurklasse | V10: Belastingsvoorbeelden | X10: NEN-EN 1995-1-1:2005/NB:2011 art.2.3.1.2
B11: dakhelling α = | C11: =SlimFix!D44 -> 0 | F11: blijvend | J11: eigen gewicht | N11: dakhelling α = | O11: =SlimFix!$D$57 -> 0 | R11: blijvend | V11: eigen gewicht | X11: Belastingsduurklasse | AB11: Belastingsvoorbeelden
F12: Kort | J12: Sneeuw, wind | R12: Kort | V12: Sneeuw, wind | X12: blijvend | AB12: eigen gewicht
X13: Kort | AB13: Sneeuw, wind
B14: eigen gewicht | C14: =VLOOKUP(C10,' lijst slimfix'!C6:E60,3) ->  | D14: kN/m2 | F14: =SlimFix!D30 -> 1,2 of 3 bouwlagen (ééngezinswoning) | N14: eigen gewicht | O14: =VLOOKUP(C10,' lijst slimfix'!C6:E60,3) ->  | P14: kN/m2 | R14: =SlimFix!D48 -> 1,2 of 3 bouwlagen (ééngezinswoning)
B15: pannen | C15: =SlimFix!D41 -> 0 | D15: kg/m2 | E15: evenwijdig | N15: pannen | O15: =SlimFix!$D$54 -> 0 | P15: kg/m2 | Q15: evenwijdig
B16: PV opdak | C16: =SlimFix!J41 -> 0 | D16: kg/m2 | E16: aan dakvl. | I16: F | N16: PV opdak | O16: =SlimFix!$J$54 -> 0 | P16: kg/m2 | Q16: aan dakvl. | U16: F
B17: tot perm. | C17: =SUM(C14:C16)/100 ->  | D17: kN/m2 = | E17: =C17*SIN(C11/180*PI())*E19*0.981 ->  | F17: kN/m1 x | G17: =E20 -> 0 | H17: = | I17: =E17*G17 ->  | J17: kN | N17: tot perm. | O17: =SUM(O14:O16)/100 ->  | P17: kN/m2 = | Q17: =O17*SIN(O11/180*PI())*Q19*0.981 ->  | R17: kN/m1 x | S17: =Q20 -> 0 | T17: = | U17: =Q17*S17 ->  | V17: kN
B18: tot sneeuw | C18: =C8 -> 0.56 | D18: kN/m2 = | E18: =C18*COS(C11/180*PI())*SIN(C11/180*PI())*E19*0.981 -> 0.00 | F18: kN/m1 x | G18: =E20 -> 0 | H18: = | I18: =E18*G18 -> 0.00 | J18: kN | N18: tot sneeuw | O18: =O8 -> 0.56 | P18: kN/m2 = | Q18: =O18*COS(O11/180*PI())*SIN(O11/180*PI())*Q19*0.981 -> 0.00 | R18: kN/m1 x | S18: =Q20 -> 0 | T18: = | U18: =Q18*S18 -> 0.00 | V18: kN
D19: elementbreedte = | E19: 1.02 | F19: m | P19: elementbreedte = | Q19: 1.02 | R19: m
D20: Daklengte = | E20: =SlimFix!J32/1000 -> 0 | F20: m | P20: Daklengte = | Q20: =SlimFix!J50/1000 -> 0 | R20: m
D22: veiligheids | F22: veiligheids | P22: veiligheids | R22: veiligheids
B23: Korte duur: | D23: factor γ | E23: F | F23: factor γ | G23: F | N23: Korte duur: | P23: factor γ | Q23: F | R23: factor γ | S23: F
A24: (6.10a) | C24: Ned,kort = | D24: =IF(F14="Meer dan 3 bouwlagen (appartement, openbaar gebouw)",1.35,1.2) -> 1.2 | E24: =I17 ->  | H24: = | I24: =D24*E24 ->  | J24: =IF(I24>=I25,"kN = max","kN") ->  | M24: (6.10a) | O24: Ned,kort = | P24: =IF(R14="Meer dan 3 bouwlagen (appartement, openbaar gebouw)",1.35,1.2) -> 1.2 | Q24: =U17 ->  | T24: = | U24: =P24*Q24 ->  | V24: =IF(U24>=U25,"kN = max","kN") -> 
A25: (6.10b) | C25: Ned,kort = | D25: =IF(F14="Meer dan 3 bouwlagen (appartement, openbaar gebouw)",1.2,1.08) -> 1.08 | E25: =I17 ->  | F25: =IF(F14="Meer dan 3 bouwlagen (appartement, openbaar gebouw)",1.5,1.35) -> 1.35 | G25: =I18 -> 0.00 | H25: = | I25: =D25*E25+F25*G25 ->  | J25: =IF(I25>=I24,"kN = max","kN") ->  | M25: (6.10b) | O25: Ned,kort = | P25: =IF(R14="Meer dan 3 bouwlagen (appartement, openbaar gebouw)",1.2,1.08) -> 1.08 | Q25: =U17 ->  | R25: =IF(R14="Meer dan 3 bouwlagen (appartement, openbaar gebouw)",1.5,1.35) -> 1.35 | S25: =U18 -> 0.00 | T25: = | U25: =P25*Q25+R25*S25 ->  | V25: =IF(U25>=U24,"kN = max","kN") -> 
B26: Blijvend: | N26: Blijvend:
A27: (6.10a) | C27: Ned,blijvend = | D27: =IF(F14="Meer dan 3 bouwlagen (appartement, openbaar gebouw)",1.35,1.2) -> 1.2 | E27: =I17 ->  | H27: = | I27: =D27*E27 ->  | J27: =IF(I27>=I28,"kN = max","kN") ->  | M27: (6.10a) | O27: Ned,blijvend = | P27: =IF(R14="Meer dan 3 bouwlagen (appartement, openbaar gebouw)",1.35,1.2) -> 1.2 | Q27: =U17 ->  | T27: = | U27: =P27*Q27 ->  | V27: =IF(U27>=U28,"kN = max","kN") -> 
A28: (6.10b) | C28: Ned,blijvend = | D28: =IF(F14="Meer dan 3 bouwlagen (appartement, openbaar gebouw)",1.2,1.08) -> 1.08 | E28: =I17 ->  | H28: = | I28: =D28*E28 ->  | J28: =IF(I28>=I27,"kN = max","kN") ->  | M28: (6.10b) | O28: Ned,blijvend = | P28: =IF(R14="Meer dan 3 bouwlagen (appartement, openbaar gebouw)",1.2,1.08) -> 1.08 | Q28: =U17 ->  | T28: = | U28: =P28*Q28 ->  | V28: =IF(U28>=U27,"kN = max","kN") -> 
E30: SHR 2023 getest | H30: opgen door 3 ø 6 | I30: daarnaast | Q30: SHR 2023 getest | T30: opgen door 3 ø 6 | U30: daarnaast
B31: spaanplaat = | C31: =VLOOKUP(C10,' lijst slimfix'!C6:D60,2) ->  | D31: mm | E31: kort | F31: blijvend | G31: kort | H31: blijvend | I31: nog nodig | N31: spaanplaat = | O31: =VLOOKUP(C10,' lijst slimfix'!C6:D60,2) ->  | P31: mm | Q31: kort | R31: blijvend | S31: kort | T31: blijvend | U31: nog nodig
A32: opneembaar door schroef ø 6 in 3mm plaat | E32: =$AA$5*1000 -> 750 | F32: =$Y$5*1000 -> 360 | G32: =3*$E$32 -> 2250 | H32: =$F$32*3 -> 1080 | I32: =CEILING(MAX((MAX(I24:I25)-G32/1000)/(E32/1000),(MAX(I27:I28)-H32/1000)/(F32/1000)),1) ->  | J32: sts ø 6 | M32: opneembaar door schroef ø 6 in 3mm plaat | Q32: =$AA$5*1000 -> 750 | R32: =$Y$5*1000 -> 360 | S32: =3*$E$32 -> 2250 | T32: =$F$32*3 -> 1080 | U32: =CEILING(MAX((MAX(U24:U25)-S32/1000)/(Q32/1000),(MAX(U27:U28)-T32/1000)/(R32/1000)),1) ->  | V32: sts ø 6
A33: opneembaar door schroef ø 8 in 3mm plaat | E33: =$AB$5*1000 -> 1040 | F33: =$Z$5*1000 -> 510 | G33: =3*$E$32 -> 2250 | H33: =$F$32*3 -> 1080 | I33: =CEILING(MAX((MAX(I24:I25)-G33/1000)/(E33/1000),(MAX(I27:I28)-H33/1000)/(F33/1000)),1) ->  | J33: sts ø 8 | M33: opneembaar door schroef ø 8 in 3mm plaat | Q33: =$AB$5*1000 -> 1040 | R33: =$Z$5*1000 -> 510 | S33: =3*$E$32 -> 2250 | T33: =$F$32*3 -> 1080 | U33: =CEILING(MAX((MAX(U24:U25)-S33/1000)/(Q33/1000),(MAX(U27:U28)-T33/1000)/(R33/1000)),1) ->  | V33: sts ø 8
A34: opneembaar door schroef ø 6 in 8mm plaat | E34: =$AA$6*1000 -> 1750 | F34: =$Y$6*1000 -> 850 | G34: =3*$E$34 -> 5250 | H34: =$F$34*3 -> 2550 | I34: =CEILING(MAX((MAX(I24:I25)-G34/1000)/(E34/1000),(MAX(I27:I28)-H34/1000)/(F34/1000)),1) ->  | J34: sts ø 6 | M34: opneembaar door schroef ø 6 in 8mm plaat | Q34: =$AA$6*1000 -> 1750 | R34: =$Y$6*1000 -> 850 | S34: =3*$E$34 -> 5250 | T34: =$F$34*3 -> 2550 | U34: =CEILING(MAX((MAX(U24:U25)-S34/1000)/(Q34/1000),(MAX(U27:U28)-T34/1000)/(R34/1000)),1) ->  | V34: sts ø 6
A35: opneembaar door schroef ø 8 in 8mm plaat | E35: =$AB$6*1000 -> 2200 | F35: =$Z$6*1000 -> 1070 | G35: =3*$E$34 -> 5250 | H35: =$F$34*3 -> 2550 | I35: =CEILING(MAX((MAX(I24:I25)-G35/1000)/(E35/1000),(MAX(I27:I28)-H35/1000)/(F35/1000)),1) ->  | J35: sts ø 8 | M35: opneembaar door schroef ø 8 in 8mm plaat | Q35: =$AB$6*1000 -> 2200 | R35: =$Z$6*1000 -> 1070 | S35: =3*$E$34 -> 5250 | T35: =$F$34*3 -> 2550 | U35: =CEILING(MAX((MAX(U24:U25)-S35/1000)/(Q35/1000),(MAX(U27:U28)-T35/1000)/(R35/1000)),1) ->  | V35: sts ø 8
A37: SlimFixXT type R | M37: SlimFixXT type R
A38: dakvlak 1 | M38: Dakvlak 2
E40: SHR 2023 getest | H40: opgen door 3 ø 6 (2rib) | I40: daarnaast | Q40: SHR 2023 getest | T40: opgen door 3 ø 6 (2rib) | U40: daarnaast
B41: spaanplaat = | C41: =VLOOKUP(C10,' lijst slimfix'!C6:D60,2) ->  | D41: mm | E41: kort | F41: blijvend | G41: kort | H41: blijvend | I41: nog nodig | N41: spaanplaat = | O41: =VLOOKUP(O10,' lijst slimfix'!C6:D60,2) ->  | P41: mm | Q41: kort | R41: blijvend | S41: kort | T41: blijvend | U41: nog nodig
A42: opneembaar door schroef ø 6 in 3mm plaat | E42: =$AA$5*1000 -> 750 | F42: =$Y$5*1000 -> 360 | G42: =2*$AA$7*1000+$E$42 -> 4190 | H42: =2*$Y$7*1000+$F$42 -> 2660 | I42: =CEILING(MAX((MAX(I24:I25)-G42/1000)/(E42/1000),(MAX(I27:I28)-H42/1000)/(F42/1000)),1) ->  | J42: sts ø 6 | M42: opneembaar door schroef ø 6 in 3mm plaat | Q42: =$AA$5*1000 -> 750 | R42: =$Y$5*1000 -> 360 | S42: =2*$AA$7*1000+$E$42 -> 4190 | T42: =2*$Y$7*1000+$F$42 -> 2660 | U42: =CEILING(MAX((MAX(U24:U25)-S42/1000)/(Q42/1000),(MAX(U27:U28)-T42/1000)/(R42/1000)),1) ->  | V42: sts ø 6
A43: opneembaar door schroef ø 6 in 8mm plaat | E43: =$AA$6*1000 -> 1750 | F43: =$Y$6*1000 -> 850 | G43: =2*$Y$8*1000+$E$43 -> 4430 | H43: =2*$Y$8*1000+$F$43 -> 3530 | I43: =CEILING(MAX((MAX(I24:I25)-G43/1000)/(E43/1000),(MAX(I27:I28)-H43/1000)/(F43/1000)),1) ->  | J43: sts ø 6 | M43: opneembaar door schroef ø 6 in 8mm plaat | Q43: =$AA$6*1000 -> 1750 | R43: =$Y$6*1000 -> 850 | S43: =2*$Y$8*1000+$E$43 -> 4430 | T43: =2*$Y$8*1000+$F$43 -> 3530 | U43: =CEILING(MAX((MAX(U24:U25)-S43/1000)/(Q43/1000),(MAX(U27:U28)-T43/1000)/(R43/1000)),1) ->  | V43: sts ø 6

Sheet lijst RC (hidden)
A1: =SlimFix!$D$11 -> _Type | B1: SlimFix Spoor | C1: SlimFix-XT 3/3L | D1: SlimFix-XT 3/3R | E1: SlimFix-XT 8/8L | F1: SlimFix-XT 8/8R | G1: SlimFix-XT Passief | H1: SlimFix-XT Passief M | I1: SlimFix-XT Riet | J1: ATTENTIE: type op alfabetische volgorde
A2: =IF(HLOOKUP($A$1,B1:I10,2)>0,HLOOKUP($A$1,B1:I10,2)," ") ->  | B2: 2.5 | C2: 2.5 | D2: 2.5 | E2: 2.5 | F2: 2.5 | G2: 9.0 | H2: 8.0 | I2: 2.5+4.0
A3: =IF(HLOOKUP($A$1,$B$1:$I$10,3)>0,HLOOKUP($A$1,$B$1:$I$10,3)," ") ->  | B3: 3.0 | C3: 3.0 | D3: 3.0 | E3: 3.0 | F3: 3.0 | G3: 10.0 | I3: 3.0+4.0
A4: =IF(HLOOKUP($A$1,$B$1:$I$10,4)>0,HLOOKUP($A$1,$B$1:$I$10,4)," ") ->  | B4: 3.5 | C4: 3.5 | D4: 3.5 | E4: 3.5 | F4: 3.5 | I4: 3.5+4.0
A5: =IF(HLOOKUP($A$1,$B$1:$I$10,5)>0,HLOOKUP($A$1,$B$1:$I$10,5)," ") ->  | B5: 4.0 | C5: 4.0 | D5: 4.0 | E5: 4.0 | F5: 4.0 | I5: 4.0+4.0
A6: =IF(HLOOKUP($A$1,$B$1:$I$10,6)>0,HLOOKUP($A$1,$B$1:$I$10,6)," ") ->  | B6: 4.5 | C6: 4.5 | D6: 4.5 | E6: 4.5 | F6: 4.5 | I6: 4.5+4.0
A7: =IF(HLOOKUP($A$1,$B$1:$I$10,7)>0,HLOOKUP($A$1,$B$1:$I$10,7)," ") ->  | B7: 5.0 | C7: 5.0 | D7: 5.0 | E7: 5.0 | F7: 5.0 | I7: 5.5+4.0
A8: =IF(HLOOKUP($A$1,$B$1:$I$10,8)>0,HLOOKUP($A$1,$B$1:$I$10,8)," ") ->  | B8: 5.5 | C8: 5.5 | D8: 5.5 | E8: 5.5 | F8: 5.5 | I8: 6.3+4.0
A9: =IF(HLOOKUP($A$1,$B$1:$I$10,9)>0,HLOOKUP($A$1,$B$1:$I$10,9)," ") ->  | B9: 6.3 | C9: 6.3 | D9: 6.3 | E9: 6.3 | F9: 6.3
A10: =IF(HLOOKUP($A$1,$B$1:$I$10,10)>0,HLOOKUP($A$1,$B$1:$I$10,10)," ") ->  | B10: 7.0 | C10: 7.0 | D10: 7.0 | E10: 7.0 | F10: 7.0

Sheet lijst slimfix (hidden)
C1: 1 | D1: 2 | E1: 3 | F1: 4 | G1: 5 | H1: 6 | I1: 7 | J1: 8 | K1: 9 | L1: 10 | M1: 11 | N1: 12 | O1: 13 | P1: 14 | Q1: 15 | R1: 16 | S1: 17 | T1: 18 | U1: 19 | V1: 20 | W1: 21 | X1: 22 | Y1: 23 | Z1: 24 | AA1: 25
A2: Keuzevelden | R2: AANTAL
F3: t.p.v. kruising tengel/gording | K3: afschuifkrachten
H4: dakvlak 1 | I4: dakvlak 2 | N4: dakvlak 1 | O4: dakvlak 2 | R4: Schroef 1 | T4: Schroef 2 | V4: Volgplaatjes | X4: Lucht. Profielen
A5: type | B5: RC-waarde | C5: samen | D5: beplating | E5: gewicht | F5: type | G5: eenheid/ds | H5: aantal elem | I5: aantal elem | J5: schroef tot | L5: eenheid/ds | M5: dikte schr | N5: aantal/pl | O5: aantal/pl | P5: schroef tot. | R5: type | S5: aantal eenheden | T5: type | U5: aantal eenheden | V5: aantal eenheden | X5: m1 | Z5: aantal
A6: SlimFix Spoor | B6: 2.5 | C6: =A6&" "&B6 -> SlimFix Spoor 2,5 | F6: schroef 160xØ6 | G6: 100 | R6: =F6 -> schroef 160xØ6
A7: SlimFix Spoor | B7: 3.0 | C7: SlimFix Spoor 3 | F7: schroef 160xØ6 | G7: 100 | R7: schroef 160xØ6
A8: SlimFix Spoor | B8: 3.5 | C8: SlimFix Spoor 3,5 | F8: schroef 180xØ6 | G8: 100 | R8: schroef 180xØ6
A9: SlimFix Spoor | B9: 4.0 | C9: SlimFix Spoor 4 | F9: schroef 200xØ6 | G9: 100 | R9: schroef 200xØ6
A10: SlimFix Spoor | B10: 4.5 | C10: SlimFix Spoor 4,5 | F10: schroef 220xØ6 | G10: 100 | R10: schroef 220xØ6
A11: SlimFix Spoor | B11: 5.0 | C11: SlimFix Spoor 5 | F11: schroef 240xØ6 | G11: 100 | R11: schroef 240xØ6
A12: SlimFix Spoor | B12: 5.5 | C12: SlimFix Spoor 5,5 | F12: schroef 260xØ6 | G12: 100 | R12: schroef 260xØ6
A13: SlimFix Spoor | B13: 6.3 | C13: SlimFix Spoor 6,3 | F13: schroef 280xØ6 | G13: 100 | R13: schroef 280xØ6
A14: SlimFix Spoor | B14: 7.0 | C14: SlimFix Spoor 7 | F14: schroef 300xØ6 | G14: 100 | R14: schroef 300xØ6
A15: SlimFix-XT 3/3L | B15: 2.5 | C15: SlimFix-XT 3/3L 2,5 | D15: 3 | E15: 10.1 | F15: Schroef 160xØ6 | G15: 100 | H15: =CEILING(SlimFix!$D$32*SlimFix!$J$44/1020,1) -> 0 | I15: =CEILING(SlimFix!$D$50*SlimFix!$J$57/1020,1) -> 0 | J15: =((H15*SlimFix!$D$35)+(I15*SlimFix!$D$52))*3 -> 0 | K15: Schroef 160xØ6 | L15: 100 | M15: 6 | N15: =IF(calcu!$I$32<=0,0,calcu!$I$32) ->  | O15: =IF(OR(I15=0,calcu!$U$32<=0),0,calcu!$U$32) ->  | P15: =(H15*N15)+(I15*O15) ->  | R15: Schroef 160xØ6 | S15: =CEILING((J15+P15)/G15,1) ->  | V15: =CEILING(P15/100,1) ->  | W15: Luchtdichte afdekprofielen | X15: =CEILING((H15*(SlimFix!$J$32/1000))+(I15*(SlimFix!$J$50/1000)),1) -> 0 | Y15: Door de tengel t.p.v. elke onderliggende gording/muurplaat: | Z15: 3 | AA15: Tussen de tengels t.p.v. de plaatvaste oplegging/muurplaat:
A16: SlimFix-XT 3/3L | B16: 3.0 | C16: SlimFix-XT 3/3L 3 | D16: 3 | E16: 10.7 | F16: Schroef 180xØ6 | G16: 100 | H16: =CEILING(SlimFix!$D$32*SlimFix!$J$44/1020,1) -> 0 | I16: =CEILING(SlimFix!$D$50*SlimFix!$J$57/1020,1) -> 0 | J16: =((H16*SlimFix!$D$35)+(I16*SlimFix!$D$52))*3 -> 0 | K16: Schroef 180xØ6 | L16: 100 | M16: 6 | N16: =IF(calcu!$I$32<=0,0,calcu!$I$32) ->  | O16: =IF(OR(I16=0,calcu!$U$32<=0),0,calcu!$U$32) ->  | R16: Schroef 180xØ6 | S16: =CEILING((J16+P16)/G16,1) ->  | W16: Luchtdichte afdekprofielen | X16: =CEILING((H16*(SlimFix!$J$32/1000))+(I16*(SlimFix!$J$50/1000)),1) -> 0 | Y16: Door de tengel t.p.v. elke onderliggende gording/muurplaat: | Z16: 3 | AA16: Tussen de tengels t.p.v. de plaatvaste oplegging/muurplaat:
A17: SlimFix-XT 3/3L | B17: 3.5 | C17: =A17&" "&B17 -> SlimFix-XT 3/3L 3,5 | D17: 3 | E17: 11.4 | F17: Schroef 200xØ6 | G17: 100 | H17: =CEILING(SlimFix!$D$32*SlimFix!$J$44/1020,1) -> 0 | I17: =CEILING(SlimFix!$D$50*SlimFix!$J$57/1020,1) -> 0 | J17: =((H17*SlimFix!$D$35)+(I17*SlimFix!$D$52))*3 -> 0 | K17: Schroef 200xØ6 | L17: 100 | M17: 6 | N17: =IF(calcu!$I$32<=0,0,calcu!$I$32) ->  | O17: =IF(OR(I17=0,calcu!$U$32<=0),0,calcu!$U$32) ->  | P17: =(H17*N17)+(I17*O17) ->  | R17: Schroef 200xØ6 | V17: =CEILING(P17/100,1) ->  | W17: Luchtdichte afdekprofielen | X17: =CEILING((H17*(SlimFix!$J$32/1000))+(I17*(SlimFix!$J$50/1000)),1) -> 0 | Y17: Door de tengel t.p.v. elke onderliggende gording/muurplaat: | Z17: 3 | AA17: Tussen de tengels t.p.v. de plaatvaste oplegging/muurplaat:
A18: SlimFix-XT 3/3L | B18: 4.0 | C18: SlimFix-XT 3/3L 4 | D18: 3 | E18: 12.0 | F18: Schroef 220xØ6 | G18: 100 | H18: =CEILING(SlimFix!$D$32*SlimFix!$J$44/1020,1) -> 0 | I18: =CEILING(SlimFix!$D$50*SlimFix!$J$57/1020,1) -> 0 | J18: =((H18*SlimFix!$D$35)+(I18*SlimFix!$D$52))*3 -> 0 | K18: Schroef 220xØ6 | L18: 100 | M18: 6 | N18: =IF(calcu!$I$32<=0,0,calcu!$I$32) ->  | O18: =IF(OR(I18=0,calcu!$U$32<=0),0,calcu!$U$32) ->  | R18: Schroef 220xØ6 | W18: Luchtdichte afdekprofielen | X18: =CEILING((H18*(SlimFix!$J$32/1000))+(I18*(SlimFix!$J$50/1000)),1) -> 0 | Y18: Door de tengel t.p.v. elke onderliggende gording/muurplaat: | Z18: 3 | AA18: Tussen de tengels t.p.v. de plaatvaste oplegging/muurplaat:
A19: SlimFix-XT 3/3L | B19: 4.5 | C19: SlimFix-XT 3/3L 4,5 | D19: 3 | E19: 12.8 | F19: Schroef 240xØ6 | G19: 100 | H19: =CEILING(SlimFix!$D$32*SlimFix!$J$44/1020,1) -> 0 | I19: =CEILING(SlimFix!$D$50*SlimFix!$J$57/1020,1) -> 0 | J19: =((H19*SlimFix!$D$35)+(I19*SlimFix!$D$52))*3 -> 0 | K19: Schroef 240xØ6 | L19: 100 | M19: 6 | N19: =IF(calcu!$I$32<=0,0,calcu!$I$32) ->  | O19: =IF(OR(I19=0,calcu!$U$32<=0),0,calcu!$U$32) ->  | R19: Schroef 240xØ6 | W19: Luchtdichte afdekprofielen | X19: =CEILING((H19*(SlimFix!$J$32/1000))+(I19*(SlimFix!$J$50/1000)),1) -> 0 | Y19: Door de tengel t.p.v. elke onderliggende gording/muurplaat: | Z19: 3 | AA19: Tussen de tengels t.p.v. de plaatvaste oplegging/muurplaat:
A20: SlimFix-XT 3/3L | B20: 5.0 | C20: SlimFix-XT 3/3L 5 | D20: 3 | E20: 13.4 | F20: Schroef 260xØ6 | G20: 100 | H20: =CEILING(SlimFix!$D$32*SlimFix!$J$44/1020,1) -> 0 | I20: =CEILING(SlimFix!$D$50*SlimFix!$J$57/1020,1) -> 0 | J20: =((H20*SlimFix!$D$35)+(I20*SlimFix!$D$52))*3 -> 0 | K20: Schroef 260xØ6 | L20: 100 | M20: 6 | N20: =IF(calcu!$I$32<=0,0,calcu!$I$32) ->  | O20: =IF(OR(I20=0,calcu!$U$32<=0),0,calcu!$U$32) ->  | R20: Schroef 260xØ6 | W20: Luchtdichte afdekprofielen | X20: =CEILING((H20*(SlimFix!$J$32/1000))+(I20*(SlimFix!$J$50/1000)),1) -> 0 | Y20: Door de tengel t.p.v. elke onderliggende gording/muurplaat: | Z20: 3 | AA20: Tussen de tengels t.p.v. de plaatvaste oplegging/muurplaat:
A21: SlimFix-XT 3/3L | B21: 5.5 | C21: SlimFix-XT 3/3L 5,5 | D21: 3 | E21: 13.9 | F21: Schroef 260xØ6 | G21: 100 | H21: =CEILING(SlimFix!$D$32*SlimFix!$J$44/1020,1) -> 0 | I21: =CEILING(SlimFix!$D$50*SlimFix!$J$57/1020,1) -> 0 | J21: =((H21*SlimFix!$D$35)+(I21*SlimFix!$D$52))*3 -> 0 | K21: Schroef 260xØ6 | L21: 100 | M21: 6 | N21: =IF(calcu!$I$32<=0,0,calcu!$I$32) ->  | O21: =IF(OR(I21=0,calcu!$U$32<=0),0,calcu!$U$32) ->  | R21: Schroef 260xØ6 | W21: Luchtdichte afdekprofielen | X21: =CEILING((H21*(SlimFix!$J$32/1000))+(I21*(SlimFix!$J$50/1000)),1) -> 0 | Y21: Door de tengel t.p.v. elke onderliggende gording/muurplaat: | Z21: 3 | AA21: Tussen de tengels t.p.v. de plaatvaste oplegging/muurplaat:
A22: SlimFix-XT 3/3L | B22: 6.3 | C22: SlimFix-XT 3/3L 6,3 | D22: 3 | E22: 15.0 | F22: Schroef 300xØ6 | G22: 100 | H22: =CEILING(SlimFix!$D$32*SlimFix!$J$44/1020,1) -> 0 | I22: =CEILING(SlimFix!$D$50*SlimFix!$J$57/1020,1) -> 0 | J22: =((H22*SlimFix!$D$35)+(I22*SlimFix!$D$52))*3 -> 0 | K22: Schroef 300xØ6 | L22: 100 | M22: 6 | N22: =IF(calcu!$I$32<=0,0,calcu!$I$32) ->  | O22: =IF(OR(I22=0,calcu!$U$32<=0),0,calcu!$U$32) ->  | R22: Schroef 300xØ6 | W22: Luchtdichte afdekprofielen | X22: =CEILING((H22*(SlimFix!$J$32/1000))+(I22*(SlimFix!$J$50/1000)),1) -> 0 | Y22: Door de tengel t.p.v. elke onderliggende gording/muurplaat: | Z22: 3 | AA22: Tussen de tengels t.p.v. de plaatvaste oplegging/muurplaat:
A23: SlimFix-XT 3/3L | B23: 7.0 | C23: SlimFix-XT 3/3L 7 | D23: 3 | E23: 16.0 | F23: Schroef 300xØ6 | G23: 100 | H23: =CEILING(SlimFix!$D$32*SlimFix!$J$44/1020,1) -> 0 | I23: =CEILING(SlimFix!$D$50*SlimFix!$J$57/1020,1) -> 0 | J23: =((H23*SlimFix!$D$35)+(I23*SlimFix!$D$52))*2 -> 0 | K23: Schroef 300xØ6 | L23: 100 | M23: 6 | N23: =IF(calcu!$I$32<=0,0,calcu!$I$32+1) ->  | O23: =IF(OR(I23=0,calcu!$U$32<=0),0,calcu!$U$32+1) ->  | T23: =K23 -> Schroef 300xØ6 | U23: =CEILING((P23+J23)/L23,1) ->  | V23: =CEILING((P23+J23)/100,1) ->  | W23: Luchtdichte afdekprofielen | X23: =CEILING((H23*(SlimFix!$J$32/1000))+(I23*(SlimFix!$J$50/1000)),1) -> 0 | Y23: Tussen de tengel t.p.v. elke onderliggende gording/muurplaat: | Z23: 2 | AA23: Tussen de tengels t.p.v. de plaatvaste oplegging/muurplaat:
A24: SlimFix-XT 3/3R | B24: 2.5 | C24: SlimFix-XT 3/3R 2,5 | D24: 3 | E24: 8.6 | F24: Schroef 160xØ6 | G24: 100 | H24: =CEILING(SlimFix!$D$32*SlimFix!$J$44/1020,1) -> 0 | I24: =CEILING(SlimFix!$D$50*SlimFix!$J$57/1020,1) -> 0 | J24: =((H24*SlimFix!$D$35)+(I24*SlimFix!$D$52))*3 -> 0 | K24: Schroef 160xØ6 | L24: 100 | M24: 6 | N24: =IF(calcu!$I$42<=0,0,calcu!$I$42) ->  | O24: =IF(calcu!$U$42<=0,0,calcu!$U$42) ->  | R24: Schroef 160xØ6 | S24: =CEILING((J24+P24)/G24,1) ->  | V24: =CEILING(P24/100,1) ->  | W24: Luchtdichte afdekprofielen | X24: =CEILING((H24*(SlimFix!$J$32/1000))+(I24*(SlimFix!$J$50/1000)),1) -> 0 | Y24: Door de tengel t.p.v. elke onderliggende gording/muurplaat: | Z24: 3 | AA24: =IF(P24=0," ","Tussen de tengels t.p.v. muurplaat:") -> 
A25: SlimFix-XT 3/3R | B25: 3.0 | C25: SlimFix-XT 3/3R 3 | D25: 3 | E25: 8.9 | F25: Schroef 160xØ6 | G25: 100 | H25: =CEILING(SlimFix!$D$32*SlimFix!$J$44/1020,1) -> 0 | I25: =CEILING(SlimFix!$D$50*SlimFix!$J$57/1020,1) -> 0 | J25: =((H25*SlimFix!$D$35)+(I25*SlimFix!$D$52))*3 -> 0 | K25: Schroef 160xØ6 | L25: 100 | M25: 6 | N25: =IF(calcu!$I$42<=0,0,calcu!$I$42) ->  | O25: =IF(calcu!$U$42<=0,0,calcu!$U$42) ->  | R25: Schroef 160xØ6 | S25: =CEILING((J25+P25)/G25,1) ->  | W25: Luchtdichte afdekprofielen | X25: =CEILING((H25*(SlimFix!$J$32/1000))+(I25*(SlimFix!$J$50/1000)),1) -> 0 | Y25: Door de tengel t.p.v. elke onderliggende gording/muurplaat: | Z25: 3
A26: SlimFix-XT 3/3R | B26: 3.5 | C26: SlimFix-XT 3/3R 3,5 | D26: 3 | E26: 9.2 | F26: Schroef 180xØ6 | G26: 100 | H26: =CEILING(SlimFix!$D$32*SlimFix!$J$44/1020,1) -> 0 | I26: =CEILING(SlimFix!$D$50*SlimFix!$J$57/1020,1) -> 0 | J26: =((H26*SlimFix!$D$35)+(I26*SlimFix!$D$52))*3 -> 0 | K26: Schroef 180xØ6 | L26: 100 | M26: 6 | N26: =IF(calcu!$I$42<=0,0,calcu!$I$42) ->  | O26: =IF(calcu!$U$42<=0,0,calcu!$U$42) ->  | P26: =(H26*N26)+(I26*O26) ->  | R26: Schroef 180xØ6 | S26: =CEILING((J26+P26)/G26,1) ->  | V26: =CEILING(P26/100,1) ->  | W26: Luchtdichte afdekprofielen | X26: =CEILING((H26*(SlimFix!$J$32/1000))+(I26*(SlimFix!$J$50/1000)),1) -> 0 | Y26: Door de tengel t.p.v. elke onderliggende gording/muurplaat: | Z26: 3 | AA26: =IF(P26=0," ","Tussen de tengels t.p.v. muurplaat:") -> 
A27: SlimFix-XT 3/3R | B27: 4.0 | C27: SlimFix-XT 3/3R 4 | D27: 3 | E27: 9.5 | F27: Schroef 200xØ6 | G27: 100 | H27: =CEILING(SlimFix!$D$32*SlimFix!$J$44/1020,1) -> 0 | I27: =CEILING(SlimFix!$D$50*SlimFix!$J$57/1020,1) -> 0 | J27: =((H27*SlimFix!$D$35)+(I27*SlimFix!$D$52))*3 -> 0 | K27: Schroef 200xØ6 | L27: 100 | M27: 6 | N27: =IF(calcu!$I$42<=0,0,calcu!$I$42) ->  | O27: =IF(calcu!$U$42<=0,0,calcu!$U$42) ->  | R27: Schroef 200xØ6 | S27: =CEILING((J27+P27)/G27,1) ->  | W27: Luchtdichte afdekprofielen | X27: =CEILING((H27*(SlimFix!$J$32/1000))+(I27*(SlimFix!$J$50/1000)),1) -> 0 | Y27: Door de tengel t.p.v. elke onderliggende gording/muurplaat: | Z27: 3
A28: SlimFix-XT 3/3R | B28: 4.5 | C28: SlimFix-XT 3/3R 4,5 | D28: 3 | E28: 9.7 | F28: Schroef 220xØ6 | G28: 100 | H28: =CEILING(SlimFix!$D$32*SlimFix!$J$44/1020,1) -> 0 | I28: =CEILING(SlimFix!$D$50*SlimFix!$J$57/1020,1) -> 0 | J28: =((H28*SlimFix!$D$35)+(I28*SlimFix!$D$52))*3 -> 0 | K28: Schroef 220xØ6 | L28: 100 | M28: 6 | N28: =IF(calcu!$I$42<=0,0,calcu!$I$42) ->  | O28: =IF(calcu!$U$42<=0,0,calcu!$U$42) ->  | R28: Schroef 220xØ6 | W28: Luchtdichte afdekprofielen | X28: =CEILING((H28*(SlimFix!$J$32/1000))+(I28*(SlimFix!$J$50/1000)),1) -> 0 | Y28: Door de tengel t.p.v. elke onderliggende gording/muurplaat: | Z28: 3
A29: SlimFix-XT 3/3R | B29: 5.0 | C29: SlimFix-XT 3/3R 5 | D29: 3 | E29: 10.0 | F29: Schroef 240xØ6 | G29: 100 | H29: =CEILING(SlimFix!$D$32*SlimFix!$J$44/1020,1) -> 0 | I29: =CEILING(SlimFix!$D$50*SlimFix!$J$57/1020,1) -> 0 | J29: =((H29*SlimFix!$D$35)+(I29*SlimFix!$D$52))*3 -> 0 | K29: Schroef 240xØ6 | L29: 100 | M29: 6 | N29: =IF(calcu!$I$42<=0,0,calcu!$I$42) ->  | O29: =IF(calcu!$U$42<=0,0,calcu!$U$42) ->  | R29: Schroef 240xØ6 | W29: Luchtdichte afdekprofielen | X29: =CEILING((H29*(SlimFix!$J$32/1000))+(I29*(SlimFix!$J$50/1000)),1) -> 0 | Y29: Door de tengel t.p.v. elke onderliggende gording/muurplaat: | Z29: 3
A30: SlimFix-XT 3/3R | B30: 5.5 | C30: SlimFix-XT 3/3R 5,5 | D30: 3 | E30: 10.3 | F30: Schroef 240xØ6 | G30: 100 | H30: =CEILING(SlimFix!$D$32*SlimFix!$J$44/1020,1) -> 0 | I30: =CEILING(SlimFix!$D$50*SlimFix!$J$57/1020,1) -> 0 | J30: =((H30*SlimFix!$D$35)+(I30*SlimFix!$D$52))*3 -> 0 | K30: Schroef 240xØ6 | L30: 100 | M30: 6 | N30: =IF(calcu!$I$42<=0,0,calcu!$I$42) ->  | O30: =IF(calcu!$U$42<=0,0,calcu!$U$42) ->  | R30: Schroef 240xØ6 | W30: Luchtdichte afdekprofielen | X30: =CEILING((H30*(SlimFix!$J$32/1000))+(I30*(SlimFix!$J$50/1000)),1) -> 0 | Y30: Door de tengel t.p.v. elke onderliggende gording/muurplaat: | Z30: 3
A31: SlimFix-XT 3/3R | B31: 6.3 | C31: =A31&" "&B31 -> SlimFix-XT 3/3R 6,3 | D31: 3 | E31: 10.7 | F31: Schroef 280xØ6 | G31: 100 | H31: =CEILING(SlimFix!$D$32*SlimFix!$J$44/1020,1) -> 0 | I31: =CEILING(SlimFix!$D$50*SlimFix!$J$57/1020,1) -> 0 | J31: =((H31*SlimFix!$D$35)+(I31*SlimFix!$D$52))*3 -> 0 | K31: Schroef 280xØ6 | L31: 100 | M31: 6 | N31: =IF(calcu!$I$42<=0,0,calcu!$I$42) ->  | O31: =IF(calcu!$U$42<=0,0,calcu!$U$42) ->  | R31: Schroef 280xØ6 | W31: Luchtdichte afdekprofielen | X31: =CEILING((H31*(SlimFix!$J$32/1000))+(I31*(SlimFix!$J$50/1000)),1) -> 0 | Y31: Door de tengel t.p.v. elke onderliggende gording/muurplaat: | Z31: 3
A32: SlimFix-XT 3/3R | B32: 7.0 | C32: SlimFix-XT 3/3R 7 | D32: 3 | E32: 11.1 | F32: Schroef 300xØ6 | G32: 100 | H32: =CEILING(SlimFix!$D$32*SlimFix!$J$44/1020,1) -> 0 | I32: =CEILING(SlimFix!$D$50*SlimFix!$J$57/1020,1) -> 0 | J32: =((H32*SlimFix!$D$35)+(I32*SlimFix!$D$52))*3 -> 0 | K32: Schroef 300xØ6 | L32: 100 | M32: 6 | N32: =IF(calcu!$I$42<=0,0,calcu!$I$42) ->  | O32: =IF(calcu!$U$42<=0,0,calcu!$U$42) ->  | R32: Schroef 300xØ6 | W32: Luchtdichte afdekprofielen | X32: =CEILING((H32*(SlimFix!$J$32/1000))+(I32*(SlimFix!$J$50/1000)),1) -> 0 | Y32: Door de tengel t.p.v. elke onderliggende gording/muurplaat: | Z32: 3
A33: SlimFix-XT 8/8L | B33: 2.5 | C33: SlimFix-XT 8/8L 2,5 | D33: 8 | E33: 17.2 | F33: Schroef 160xØ6 | G33: 100 | H33: =CEILING(SlimFix!$D$32*SlimFix!$J$44/1020,1) -> 0 | I33: =CEILING(SlimFix!$D$50*SlimFix!$J$57/1020,1) -> 0 | J33: =((H33*SlimFix!$D$35)+(I33*SlimFix!$D$52))*3 -> 0 | K33: Schroef 160xØ6 | L33: 100 | M33: 6 | N33: =IF(calcu!$I$34<=0,0,calcu!$I$34) ->  | O33: =IF(OR(I33=0,calcu!$U$34<=0),0,calcu!$U$34) ->  | R33: Schroef 160xØ6 | W33: Luchtdichte afdekprofielen | X33: =CEILING((H33*(SlimFix!$J$32/1000))+(I33*(SlimFix!$J$50/1000)),1) -> 0 | Y33: Door de tengel t.p.v. elke onderliggende gording/muurplaat: | Z33: 3 | AA33: Tussen de tengels t.p.v. de plaatvaste oplegging/muurplaat:
A34: SlimFix-XT 8/8L | B34: 3.0 | C34: SlimFix-XT 8/8L 3 | D34: 8 | E34: 17.8 | F34: Schroef 180xØ6 | G34: 100 | H34: =CEILING(SlimFix!$D$32*SlimFix!$J$44/1020,1) -> 0 | I34: =CEILING(SlimFix!$D$50*SlimFix!$J$57/1020,1) -> 0 | J34: =((H34*SlimFix!$D$35)+(I34*SlimFix!$D$52))*3 -> 0 | K34: Schroef 180xØ6 | L34: 100 | M34: 6 | N34: =IF(calcu!$I$34<=0,0,calcu!$I$34) ->  | O34: =IF(OR(I34=0,calcu!$U$34<=0),0,calcu!$U$34) ->  | R34: Schroef 180xØ6 | W34: Luchtdichte afdekprofielen | X34: =CEILING((H34*(SlimFix!$J$32/1000))+(I34*(SlimFix!$J$50/1000)),1) -> 0 | Y34: Door de tengel t.p.v. elke onderliggende gording/muurplaat: | Z34: 3 | AA34: Tussen de tengels t.p.v. de plaatvaste oplegging/muurplaat:
A35: SlimFix-XT 8/8L | B35: 3.5 | C35: =A35&" "&B35 -> SlimFix-XT 8/8L 3,5 | D35: 8 | E35: 18.6 | F35: Schroef 200xØ6 | G35: 100 | H35: =CEILING(SlimFix!$D$32*SlimFix!$J$44/1020,1) -> 0 | I35: =CEILING(SlimFix!$D$50*SlimFix!$J$57/1020,1) -> 0 | J35: =((H35*SlimFix!$D$35)+(I35*SlimFix!$D$52))*3 -> 0 | K35: Schroef 200xØ6 | L35: 100 | M35: 6 | N35: =IF(calcu!$I$34<=0,0,calcu!$I$34) ->  | O35: =IF(OR(I35=0,calcu!$U$34<=0),0,calcu!$U$34) ->  | P35: =(H35*N35)+(I35*O35) ->  | R35: Schroef 200xØ6 | V35: =CEILING(P35/100,1) ->  | W35: Luchtdichte afdekprofielen | X35: =CEILING((H35*(SlimFix!$J$32/1000))+(I35*(SlimFix!$J$50/1000)),1) -> 0 | Y35: Door de tengel t.p.v. elke onderliggende gording/muurplaat: | Z35: 3 | AA35: Tussen de tengels t.p.v. de plaatvaste oplegging/muurplaat:
A36: SlimFix-XT 8/8L | B36: 4.0 | C36: SlimFix-XT 8/8L 4 | D36: 8 | E36: 19.2 | F36: Schroef 220xØ6 | G36: 100 | H36: =CEILING(SlimFix!$D$32*SlimFix!$J$44/1020,1) -> 0 | I36: =CEILING(SlimFix!$D$50*SlimFix!$J$57/1020,1) -> 0 | J36: =((H36*SlimFix!$D$35)+(I36*SlimFix!$D$52))*3 -> 0 | K36: Schroef 220xØ6 | L36: 100 | M36: 6 | N36: =IF(calcu!$I$34<=0,0,calcu!$I$34) ->  | O36: =IF(OR(I36=0,calcu!$U$34<=0),0,calcu!$U$34) ->  | R36: Schroef 220xØ6 | W36: Luchtdichte afdekprofielen | X36: =CEILING((H36*(SlimFix!$J$32/1000))+(I36*(SlimFix!$J$50/1000)),1) -> 0 | Y36: Door de tengel t.p.v. elke onderliggende gording/muurplaat: | Z36: 3 | AA36: Tussen de tengels t.p.v. de plaatvaste oplegging/muurplaat:
A37: SlimFix-XT 8/8L | B37: 4.5 | C37: SlimFix-XT 8/8L 4,5 | D37: 8 | E37: 20.0 | F37: Schroef 240xØ6 | G37: 100 | H37: =CEILING(SlimFix!$D$32*SlimFix!$J$44/1020,1) -> 0 | I37: =CEILING(SlimFix!$D$50*SlimFix!$J$57/1020,1) -> 0 | J37: =((H37*SlimFix!$D$35)+(I37*SlimFix!$D$52))*3 -> 0 | K37: Schroef 240xØ6 | L37: 100 | M37: 6 | N37: =IF(calcu!$I$34<=0,0,calcu!$I$34) ->  | O37: =IF(OR(I37=0,calcu!$U$34<=0),0,calcu!$U$34) ->  | R37: Schroef 240xØ6 | W37: Luchtdichte afdekprofielen | X37: =CEILING((H37*(SlimFix!$J$32/1000))+(I37*(SlimFix!$J$50/1000)),1) -> 0 | Y37: Door de tengel t.p.v. elke onderliggende gording/muurplaat: | Z37: 3 | AA37: Tussen de tengels t.p.v. de plaatvaste oplegging/muurplaat:
A38: SlimFix-XT 8/8L | B38: 5.0 | C38: SlimFix-XT 8/8L 5 | D38: 8 | E38: 20.6 | F38: Schroef 260xØ6 | G38: 100 | H38: =CEILING(SlimFix!$D$32*SlimFix!$J$44/1020,1) -> 0 | I38: =CEILING(SlimFix!$D$50*SlimFix!$J$57/1020,1) -> 0 | J38: =((H38*SlimFix!$D$35)+(I38*SlimFix!$D$52))*3 -> 0 | K38: Schroef 260xØ6 | L38: 100 | M38: 6 | N38: =IF(calcu!$I$34<=0,0,calcu!$I$34) ->  | O38: =IF(OR(I38=0,calcu!$U$34<=0),0,calcu!$U$34) ->  | R38: Schroef 260xØ6 | W38: Luchtdichte afdekprofielen | X38: =CEILING((H38*(SlimFix!$J$32/1000))+(I38*(SlimFix!$J$50/1000)),1) -> 0 | Y38: Door de tengel t.p.v. elke onderliggende gording/muurplaat: | Z38: 3 | AA38: Tussen de tengels t.p.v. de plaatvaste oplegging/muurplaat:
A39: SlimFix-XT 8/8L | B39: 5.5 | C39: SlimFix-XT 8/8L 5,5 | D39: 8 | E39: 21.1 | F39: Schroef 280xØ6 | G39: 100 | H39: =CEILING(SlimFix!$D$32*SlimFix!$J$44/1020,1) -> 0 | I39: =CEILING(SlimFix!$D$50*SlimFix!$J$57/1020,1) -> 0 | J39: =((H39*SlimFix!$D$35)+(I39*SlimFix!$D$52))*3 -> 0 | K39: Schroef 280xØ6 | L39: 100 | M39: 6 | N39: =IF(calcu!$I$34<=0,0,calcu!$I$34) ->  | O39: =IF(OR(I39=0,calcu!$U$34<=0),0,calcu!$U$34) ->  | R39: Schroef 280xØ6 | W39: Luchtdichte afdekprofielen | X39: =CEILING((H39*(SlimFix!$J$32/1000))+(I39*(SlimFix!$J$50/1000)),1) -> 0 | Y39: Door de tengel t.p.v. elke onderliggende gording/muurplaat: | Z39: 3 | AA39: Tussen de tengels t.p.v. de plaatvaste oplegging/muurplaat:
A40: SlimFix-XT 8/8L | B40: 6.3 | C40: SlimFix-XT 8/8L 6,3 | D40: 8 | E40: 22.2 | F40: Schroef 300xØ6 | G40: 100 | H40: =CEILING(SlimFix!$D$32*SlimFix!$J$44/1020,1) -> 0 | I40: =CEILING(SlimFix!$D$50*SlimFix!$J$57/1020,1) -> 0 | J40: =((H40*SlimFix!$D$35)+(I40*SlimFix!$D$52))*3 -> 0 | K40: Schroef 300xØ6 | L40: 100 | M40: 6 | N40: =IF(calcu!$I$34<=0,0,calcu!$I$34) ->  | O40: =IF(OR(I40=0,calcu!$U$34<=0),0,calcu!$U$34) ->  | R40: Schroef 300xØ6 | W40: Luchtdichte afdekprofielen | X40: =CEILING((H40*(SlimFix!$J$32/1000))+(I40*(SlimFix!$J$50/1000)),1) -> 0 | Y40: Door de tengel t.p.v. elke onderliggende gording/muurplaat: | Z40: 3 | AA40: Tussen de tengels t.p.v. de plaatvaste oplegging/muurplaat:
A41: SlimFix-XT 8/8L | B41: 7.0 | C41: SlimFix-XT 8/8L 7 | D41: 8 | E41: 23.1 | F41: Schroef 300xØ6 | G41: 100 | H41: =CEILING(SlimFix!$D$32*SlimFix!$J$44/1020,1) -> 0 | I41: =CEILING(SlimFix!$D$50*SlimFix!$J$57/1020,1) -> 0 | J41: =((H41*SlimFix!$D$35)+(I41*SlimFix!$D$52))*2 -> 0 | K41: Schroef 300xØ6 | L41: 100 | M41: 6 | N41: =IF(calcu!$I$34<=0,0,calcu!$I$34+1) ->  | O41: =IF(OR(I41=0,calcu!$U$34<=0),0,calcu!$U$34+1) ->  | R41: Schroef 300xØ6 | T41: =K41 -> Schroef 300xØ6 | U41: =CEILING((P41+J41)/L41,1) ->  | V41: =CEILING((P41+J41)/100,1) ->  | W41: Luchtdichte afdekprofielen | X41: =CEILING((H41*(SlimFix!$J$32/1000))+(I41*(SlimFix!$J$50/1000)),1) -> 0 | Y41: Tussen de tengel t.p.v. elke onderliggende gording/muurplaat: | Z41: 2 | AA41: Tussen de tengels t.p.v. de plaatvaste oplegging/muurplaat:
A42: SlimFix-XT 8/8R | B42: 2.5 | C42: SlimFix-XT 8/8R 2,5 | D42: 8 | E42: 15.8 | F42: Schroef 160xØ6 | G42: 100 | H42: =CEILING(SlimFix!$D$32*SlimFix!$J$44/1020,1) -> 0 | I42: =CEILING(SlimFix!$D$50*SlimFix!$J$57/1020,1) -> 0 | J42: =((H42*SlimFix!$D$35)+(I42*SlimFix!$D$52))*3 -> 0 | K42: Schroef 160xØ6 | L42: 100 | M42: 6 | N42: =IF(calcu!$I$43<=0,0,calcu!$I$43) ->  | O42: =IF(calcu!$U$43<=0,0,calcu!$U$43) ->  | R42: Schroef 160xØ6 | S42: =CEILING((J42+P42)/G42,1) ->  | V42: =CEILING(P42/100,1) ->  | W42: Luchtdichte afdekprofielen | X42: =CEILING((H42*(SlimFix!$J$32/1000))+(I42*(SlimFix!$J$50/1000)),1) -> 0 | Y42: Door de tengel t.p.v. elke onderliggende gording/muurplaat: | Z42: 3 | AA42: =IF(P42=0," ","Tussen de tengels t.p.v. muurplaat:") -> 
A43: SlimFix-XT 8/8R | B43: 3.0 | C43: SlimFix-XT 8/8R 3 | D43: 8 | E43: 16.1 | F43: Schroef 180xØ6 | G43: 100 | H43: =CEILING(SlimFix!$D$32*SlimFix!$J$44/1020,1) -> 0 | I43: =CEILING(SlimFix!$D$50*SlimFix!$J$57/1020,1) -> 0 | J43: =((H43*SlimFix!$D$35)+(I43*SlimFix!$D$52))*3 -> 0 | K43: Schroef 180xØ6 | L43: 100 | M43: 6 | N43: =IF(calcu!$I$43<=0,0,calcu!$I$43) ->  | O43: =IF(calcu!$U$43<=0,0,calcu!$U$43) ->  | R43: Schroef 180xØ6 | W43: Luchtdichte afdekprofielen | X43: =CEILING((H43*(SlimFix!$J$32/1000))+(I43*(SlimFix!$J$50/1000)),1) -> 0 | Y43: Door de tengel t.p.v. elke onderliggende gording/muurplaat: | Z43: 3
A44: SlimFix-XT 8/8R | B44: 3.5 | C44: SlimFix-XT 8/8R 3,5 | D44: 8 | E44: 16.4 | F44: Schroef 200xØ6 | G44: 100 | H44: =CEILING(SlimFix!$D$32*SlimFix!$J$44/1020,1) -> 0 | I44: =CEILING(SlimFix!$D$50*SlimFix!$J$57/1020,1) -> 0 | J44: =((H44*SlimFix!$D$35)+(I44*SlimFix!$D$52))*3 -> 0 | K44: Schroef 200xØ6 | L44: 100 | M44: 6 | N44: =IF(calcu!$I$43<=0,0,calcu!$I$43) ->  | O44: =IF(calcu!$U$43<=0,0,calcu!$U$43) ->  | R44: Schroef 200xØ6 | W44: Luchtdichte afdekprofielen | X44: =CEILING((H44*(SlimFix!$J$32/1000))+(I44*(SlimFix!$J$50/1000)),1) -> 0 | Y44: Door de tengel t.p.v. elke onderliggende gording/muurplaat: | Z44: 3 | AA44: =IF(P44=0," ","Tussen de tengels t.p.v. muurplaat:") -> 
A45: SlimFix-XT 8/8R | B45: 4.0 | C45: SlimFix-XT 8/8R 4 | D45: 8 | E45: 16.7 | F45: Schroef 220xØ6 | G45: 100 | H45: =CEILING(SlimFix!$D$32*SlimFix!$J$44/1020,1) -> 0 | I45: =CEILING(SlimFix!$D$50*SlimFix!$J$57/1020,1) -> 0 | J45: =((H45*SlimFix!$D$35)+(I45*SlimFix!$D$52))*3 -> 0 | K45: Schroef 220xØ6 | L45: 100 | M45: 6 | N45: =IF(calcu!$I$43<=0,0,calcu!$I$43) ->  | O45: =IF(calcu!$U$43<=0,0,calcu!$U$43) ->  | R45: Schroef 220xØ6 | W45: Luchtdichte afdekprofielen | X45: =CEILING((H45*(SlimFix!$J$32/1000))+(I45*(SlimFix!$J$50/1000)),1) -> 0 | Y45: Door de tengel t.p.v. elke onderliggende gording/muurplaat: | Z45: 3
A46: SlimFix-XT 8/8R | B46: 4.5 | C46: SlimFix-XT 8/8R 4,5 | D46: 8 | E46: 16.9 | F46: Schroef 220xØ6 | G46: 100 | H46: =CEILING(SlimFix!$D$32*SlimFix!$J$44/1020,1) -> 0 | I46: =CEILING(SlimFix!$D$50*SlimFix!$J$57/1020,1) -> 0 | J46: =((H46*SlimFix!$D$35)+(I46*SlimFix!$D$52))*3 -> 0 | K46: Schroef 220xØ6 | L46: 100 | M46: 6 | N46: =IF(calcu!$I$43<=0,0,calcu!$I$43) ->  | O46: =IF(calcu!$U$43<=0,0,calcu!$U$43) ->  | R46: Schroef 220xØ6 | W46: Luchtdichte afdekprofielen | X46: =CEILING((H46*(SlimFix!$J$32/1000))+(I46*(SlimFix!$J$50/1000)),1) -> 0 | Y46: Door de tengel t.p.v. elke onderliggende gording/muurplaat: | Z46: 3
A47: SlimFix-XT 8/8R | B47: 5.0 | C47: SlimFix-XT 8/8R 5 | D47: 8 | E47: 17.2 | F47: Schroef 240xØ6 | G47: 100 | H47: =CEILING(SlimFix!$D$32*SlimFix!$J$44/1020,1) -> 0 | I47: =CEILING(SlimFix!$D$50*SlimFix!$J$57/1020,1) -> 0 | J47: =((H47*SlimFix!$D$35)+(I47*SlimFix!$D$52))*3 -> 0 | K47: Schroef 240xØ6 | L47: 100 | M47: 6 | N47: =IF(calcu!$I$43<=0,0,calcu!$I$43) ->  | O47: =IF(calcu!$U$43<=0,0,calcu!$U$43) ->  | R47: Schroef 240xØ6 | W47: Luchtdichte afdekprofielen | X47: =CEILING((H47*(SlimFix!$J$32/1000))+(I47*(SlimFix!$J$50/1000)),1) -> 0 | Y47: Door de tengel t.p.v. elke onderliggende gording/muurplaat: | Z47: 3
A48: SlimFix-XT 8/8R | B48: 5.5 | C48: SlimFix-XT 8/8R 5,5 | D48: 8 | E48: 17.5 | F48: Schroef 260xØ6 | G48: 100 | H48: =CEILING(SlimFix!$D$32*SlimFix!$J$44/1020,1) -> 0 | I48: =CEILING(SlimFix!$D$50*SlimFix!$J$57/1020,1) -> 0 | J48: =((H48*SlimFix!$D$35)+(I48*SlimFix!$D$52))*3 -> 0 | K48: Schroef 260xØ6 | L48: 100 | M48: 6 | N48: =IF(calcu!$I$43<=0,0,calcu!$I$43) ->  | O48: =IF(calcu!$U$43<=0,0,calcu!$U$43) ->  | R48: Schroef 260xØ6 | W48: Luchtdichte afdekprofielen | X48: =CEILING((H48*(SlimFix!$J$32/1000))+(I48*(SlimFix!$J$50/1000)),1) -> 0 | Y48: Door de tengel t.p.v. elke onderliggende gording/muurplaat: | Z48: 3
A49: SlimFix-XT 8/8R | B49: 6.3 | C49: SlimFix-XT 8/8R 6,3 | D49: 8 | E49: 17.9 | F49: Schroef 280xØ6 | G49: 100 | H49: =CEILING(SlimFix!$D$32*SlimFix!$J$44/1020,1) -> 0 | I49: =CEILING(SlimFix!$D$50*SlimFix!$J$57/1020,1) -> 0 | J49: =((H49*SlimFix!$D$35)+(I49*SlimFix!$D$52))*3 -> 0 | K49: Schroef 280xØ6 | L49: 100 | M49: 6 | N49: =IF(calcu!$I$43<=0,0,calcu!$I$43) ->  | O49: =IF(calcu!$U$43<=0,0,calcu!$U$43) ->  | R49: Schroef 280xØ6 | W49: Luchtdichte afdekprofielen | X49: =CEILING((H49*(SlimFix!$J$32/1000))+(I49*(SlimFix!$J$50/1000)),1) -> 0 | Y49: Door de tengel t.p.v. elke onderliggende gording/muurplaat: | Z49: 3
A50: SlimFix-XT 8/8R | B50: 7.0 | C50: SlimFix-XT 8/8R 7 | D50: 8 | E50: 18.3 | F50: Schroef 300xØ6 | G50: 100 | H50: =CEILING(SlimFix!$D$32*SlimFix!$J$44/1020,1) -> 0 | I50: =CEILING(SlimFix!$D$50*SlimFix!$J$57/1020,1) -> 0 | J50: =((H50*SlimFix!$D$35)+(I50*SlimFix!$D$52))*3 -> 0 | K50: Schroef 300xØ6 | L50: 100 | M50: 6 | N50: =IF(calcu!$I$43<=0,0,calcu!$I$43) ->  | O50: =IF(calcu!$U$43<=0,0,calcu!$U$43) ->  | R50: Schroef 300xØ6 | W50: Luchtdichte afdekprofielen | X50: =CEILING((H50*(SlimFix!$J$32/1000))+(I50*(SlimFix!$J$50/1000)),1) -> 0 | Y50: Door de tengel t.p.v. elke onderliggende gording/muurplaat: | Z50: 3
A51: SlimFix-XT Passief | B51: 10.0 | C51: SlimFix-XT Passief 10 | D51: 8 | E51: 33 | F51: Schroef 400xØ8 | G51: 50 | H51: =CEILING(SlimFix!$D$32*SlimFix!$J$44/1020,1) -> 0 | I51: =CEILING(SlimFix!$D$50*SlimFix!$J$57/1020,1) -> 0 | J51: =((H51*SlimFix!$D$35)+(I51*SlimFix!$D$52))*2 -> 0 | K51: Schroef 400xØ8 | L51: 50 | M51: 8 | N51: =IF(calcu!$I$35<=0,0,calcu!$I$35) ->  | O51: =IF(OR(I51=0,calcu!$U$35<=0),0,calcu!$U$35) ->  | P51: =(H51*N51)+(I51*O51) ->  | T51: =K51 -> Schroef 400xØ8 | U51: =CEILING((P51+J51)/L51,1) ->  | V51: =CEILING((P51+J51)/100,1) ->  | W51: Luchtdichte afdekprofielen | X51: =CEILING((H51*(SlimFix!$J$32/1000))+(I51*(SlimFix!$J$50/1000)),1) -> 0 | Y51: Tussen de tengel t.p.v. elke onderliggende gording/muurplaat: | Z51: 2 | AA51: Tussen de tengels t.p.v. de plaatvaste oplegging/muurplaat:
A52: SlimFix-XT Passief | B52: 9.0 | C52: =A52&" "&B52 -> SlimFix-XT Passief 9 | D52: 8 | E52: 32.5 | F52: Schroef 380xØ8 | G52: 50 | H52: =CEILING(SlimFix!$D$32*SlimFix!$J$44/1020,1) -> 0 | I52: =CEILING(SlimFix!$D$50*SlimFix!$J$57/1020,1) -> 0 | J52: =((H52*SlimFix!$D$35)+(I52*SlimFix!$D$52))*2 -> 0 | K52: Schroef 380xØ8 | L52: 50 | M52: 8 | N52: =IF(calcu!$I$35<=0,0,calcu!$I$35) ->  | O52: =IF(OR(I52=0,calcu!$U$35<=0),0,calcu!$U$35) ->  | P52: =(H52*N52)+(I52*O52) ->  | T52: =K52 -> Schroef 380xØ8 | U52: =CEILING((P52+J52)/L52,1) ->  | V52: =CEILING((P52+J52)/100,1) ->  | W52: Luchtdichte afdekprofielen | X52: =CEILING((H52*(SlimFix!$J$32/1000))+(I52*(SlimFix!$J$50/1000)),1) -> 0 | Y52: Tussen de tengel t.p.v. elke onderliggende gording/muurplaat: | Z52: 2 | AA52: Tussen de tengels t.p.v. de plaatvaste oplegging/muurplaat:
A53: SlimFix-XT Passief M | B53: 8.0 | C53: =A53&" "&B53 -> SlimFix-XT Passief M 8 | D53: 8 | E53: 29 | F53: Schroef 340xØ8 | G53: 50 | H53: =CEILING(SlimFix!$D$32*SlimFix!$J$44/1020,1) -> 0 | I53: =CEILING(SlimFix!$D$50*SlimFix!$J$57/1020,1) -> 0 | J53: =((H53*SlimFix!$D$35)+(I53*SlimFix!$D$52))*2 -> 0 | K53: Schroef 340xØ8 | L53: 50 | M53: 8 | N53: =IF(calcu!$I$35<=0,0,calcu!$I$35) ->  | O53: =IF(OR(I53=0,calcu!$U$35<=0),0,calcu!$U$35) ->  | P53: =(H53*N53)+(I53*O53) ->  | T53: =K53 -> Schroef 340xØ8 | U53: =CEILING((P53+J53)/L53,1) ->  | V53: =CEILING((P53+J53)/100,1) ->  | W53: Max naadprofiel + Max luchtdicht afdekprofiel | X53: =CEILING((H53*(SlimFix!$J$32/1000))+(I53*(SlimFix!$J$50/1000)),1) -> 0 | Y53: Tussen de tengel t.p.v. elke onderliggende gording/muurplaat: | Z53: 2 | AA53: Tussen de tengels t.p.v. de plaatvaste oplegging/muurplaat:
A54: SlimFix-XT Riet | B54: 2.5+4.0 | C54: SlimFix-XT Riet 2.5+4.0 | D54: 3 | E54: 14.1 | F54: Schroef 140xØ6 | G54: 100 | H54: =CEILING(SlimFix!$D$32*SlimFix!$J$44/1020,1) -> 0 | I54: =CEILING(SlimFix!$D$50*SlimFix!$J$57/1020,1) -> 0 | J54: =((H54*(SlimFix!$D$35))+(I54*(SlimFix!$D$52)))*3 -> 0 | K54: Schroef 140xØ6 | L54: 100 | M54: 6 | N54: =IF(calcu!$I$32<=0,0,calcu!$I$32) ->  | O54: =IF(OR(I54=0,calcu!$U$32<=0),0,calcu!$U$32) ->  | R54: =F54 -> Schroef 140xØ6 | S54: =CEILING((J54+P54)/G54,1) ->  | W54: Luchtdichte afdekprofielen | X54: =CEILING((H54*(SlimFix!$J$32/1000))+(I54*(SlimFix!$J$50/1000)),1) -> 0 | Y54: T.p.v. elke onderliggende gording/muurplaat: | Z54: 3 | AA54: Extra t.p.v. de plaatvaste oplegging/muurplaat:
A55: SlimFix-XT Riet | B55: 3.0+4.0 | C55: SlimFix-XT Riet 3.0+4.0 | D55: 3 | E55: 14.7 | F55: Schroef 160xØ6 | G55: 100 | H55: =CEILING(SlimFix!$D$32*SlimFix!$J$44/1020,1) -> 0 | I55: =CEILING(SlimFix!$D$50*SlimFix!$J$57/1020,1) -> 0 | J55: =((H55*(SlimFix!$D$35))+(I55*(SlimFix!$D$52)))*3 -> 0 | K55: Schroef 160xØ6 | L55: 100 | M55: 6 | N55: =IF(calcu!$I$32<=0,0,calcu!$I$32) ->  | O55: =IF(OR(I55=0,calcu!$U$32<=0),0,calcu!$U$32) ->  | P55: =(H55*N55)+(I55*O55) ->  | R55: Schroef 160xØ6 | W55: Luchtdichte afdekprofielen | X55: =CEILING((H55*(SlimFix!$J$32/1000))+(I55*(SlimFix!$J$50/1000)),1) -> 0 | Y55: T.p.v. elke onderliggende gording/muurplaat: | Z55: 3 | AA55: Extra t.p.v. de plaatvaste oplegging/muurplaat:
A56: SlimFix-XT Riet | B56: 3.5+4.0 | C56: SlimFix-XT Riet 3.5+4.0 | D56: 3 | E56: 15.5 | F56: Schroef 180xØ8 | G56: 50 | H56: =CEILING(SlimFix!$D$32*SlimFix!$J$44/1020,1) -> 0 | I56: =CEILING(SlimFix!$D$50*SlimFix!$J$57/1020,1) -> 0 | J56: =((H56*(SlimFix!$D$35))+(I56*(SlimFix!$D$52)))*3 -> 0 | K56: Schroef 180xØ8 | L56: 50 | M56: 8 | N56: =IF(calcu!$I$33<=0,0,calcu!$I$33) ->  | O56: =IF(OR(I56=0,calcu!$U$33<=0),0,calcu!$U$33) ->  | R56: Schroef 180xØ8 | W56: Luchtdichte afdekprofielen | X56: =CEILING((H56*(SlimFix!$J$32/1000))+(I56*(SlimFix!$J$50/1000)),1) -> 0 | Y56: T.p.v. elke onderliggende gording/muurplaat: | Z56: 3 | AA56: Extra t.p.v. de plaatvaste oplegging/muurplaat:
A57: SlimFix-XT Riet | B57: 4.0+4.0 | C57: SlimFix-XT Riet 4.0+4.0 | D57: 3 | E57: 16.1 | F57: Schroef 200xØ8 | G57: 50 | H57: =CEILING(SlimFix!$D$32*SlimFix!$J$44/1020,1) -> 0 | I57: =CEILING(SlimFix!$D$50*SlimFix!$J$57/1020,1) -> 0 | J57: =((H57*(SlimFix!$D$35))+(I57*(SlimFix!$D$52)))*3 -> 0 | K57: Schroef 200xØ8 | L57: 50 | M57: 8 | N57: =IF(calcu!$I$33<=0,0,calcu!$I$33) ->  | O57: =IF(OR(I57=0,calcu!$U$33<=0),0,calcu!$U$33) ->  | R57: Schroef 200xØ8 | W57: Luchtdichte afdekprofielen | X57: =CEILING((H57*(SlimFix!$J$32/1000))+(I57*(SlimFix!$J$50/1000)),1) -> 0 | Y57: T.p.v. elke onderliggende gording/muurplaat: | Z57: 3 | AA57: Extra t.p.v. de plaatvaste oplegging/muurplaat:
A58: SlimFix-XT Riet | B58: 4.5+4.0 | C58: SlimFix-XT Riet 4.5+4.0 | D58: 3 | E58: 16.8 | F58: Schroef 220xØ8 | G58: 50 | H58: =CEILING(SlimFix!$D$32*SlimFix!$J$44/1020,1) -> 0 | I58: =CEILING(SlimFix!$D$50*SlimFix!$J$57/1020,1) -> 0 | J58: =((H58*(SlimFix!$D$35))+(I58*(SlimFix!$D$52)))*3 -> 0 | K58: Schroef 220xØ8 | L58: 50 | M58: 8 | N58: =IF(calcu!$I$33<=0,0,calcu!$I$33) ->  | O58: =IF(OR(I58=0,calcu!$U$33<=0),0,calcu!$U$33) ->  | R58: Schroef 220xØ8 | W58: Luchtdichte afdekprofielen | X58: =CEILING((H58*(SlimFix!$J$32/1000))+(I58*(SlimFix!$J$50/1000)),1) -> 0 | Y58: T.p.v. elke onderliggende gording/muurplaat: | Z58: 3 | AA58: Extra t.p.v. de plaatvaste oplegging/muurplaat:
A59: SlimFix-XT Riet | B59: 5.5+4.0 | C59: SlimFix-XT Riet 5.5+4.0 | D59: 3 | E59: 18 | F59: Schroef 260xØ8 | G59: 50 | H59: =CEILING(SlimFix!$D$32*SlimFix!$J$44/1020,1) -> 0 | I59: =CEILING(SlimFix!$D$50*SlimFix!$J$57/1020,1) -> 0 | J59: =((H59*(SlimFix!$D$35))+(I59*(SlimFix!$D$52)))*3 -> 0 | K59: Schroef 260xØ8 | L59: 50 | M59: 8 | N59: =IF(calcu!$I$33<=0,0,calcu!$I$33) ->  | O59: =IF(OR(I59=0,calcu!$U$33<=0),0,calcu!$U$33) ->  | R59: Schroef 260xØ8 | W59: Luchtdichte afdekprofielen | X59: =CEILING((H59*(SlimFix!$J$32/1000))+(I59*(SlimFix!$J$50/1000)),1) -> 0 | Y59: T.p.v. elke onderliggende gording/muurplaat: | Z59: 3 | AA59: Extra t.p.v. de plaatvaste oplegging/muurplaat:
A60: SlimFix-XT Riet | B60: 6.3+4.0 | C60: SlimFix-XT Riet 6.3+4.0 | D60: 3 | E60: 18.9 | F60: Schroef 280xØ8 | G60: 50 | H60: =CEILING(SlimFix!$D$32*SlimFix!$J$44/1020,1) -> 0 | I60: =CEILING(SlimFix!$D$50*SlimFix!$J$57/1020,1) -> 0 | J60: =((H60*(SlimFix!$D$35))+(I60*(SlimFix!$D$52)))*3 -> 0 | K60: Schroef 280xØ8 | L60: 50 | M60: 8 | N60: =IF(calcu!$I$33<=0,0,calcu!$I$33) ->  | O60: =IF(OR(I60=0,calcu!$U$33<=0),0,calcu!$U$33) ->  | R60: Schroef 280xØ8 | W60: Luchtdichte afdekprofielen | X60: =CEILING((H60*(SlimFix!$J$32/1000))+(I60*(SlimFix!$J$50/1000)),1) -> 0 | Y60: T.p.v. elke onderliggende gording/muurplaat: | Z60: 3 | AA60: Extra t.p.v. de plaatvaste oplegging/muurplaat:
A61: ATTENTIE: type op alfabetische volgorde
A64: _Type
A65: SlimFix-XT 3/3R
A66: SlimFix-XT 3/3L
A67: SlimFix-XT 8/8R
A68: SlimFix-XT 8/8L
A69: SlimFix-XT Passief
A70: SlimFix-XT PassiefM
A71: SlimFix-XT Riet
A74: 2
A75: 3
A76: 4
A77: 5
A78: 6
A81: 1,2 of 3 bouwlagen (ééngezinswoning)
A82: Meer dan 3 bouwlagen (appartement, openbaar gebouw)

Sheet lijst reno (hidden)
A1: Keuzevelden | D1: AANTAL BEVESTIGERS PER PLAAT
D3: t.p.v. kruising tengel/gording | G3: dakvlak 1 | H3: dakvlak 2
A4: type | B4: RC-waarde | D4: type | E4: aantal | F4: maat | G4: aantal elem. | H4: aantal elem. | I4: schroef tot. | M4: type
A5: SlimFix Reno+ | B5: 2.5 | C5: =A5&" "&B5 -> SlimFix Reno+ 2,5 | D5: Schroef | E5: 6 | F5: 140xØ6 | G5: =CEILING('SlimFix Reno+'!$D$29*'SlimFix Reno+'!$D$36/1000,1) -> 0 | H5: =CEILING('SlimFix Reno+'!$D$40*'SlimFix Reno+'!$D$45/1000,1) -> 0 | I5: =((G5*'SlimFix Reno+'!$D$32)+(H5*'SlimFix Reno+'!$D$42))*3 -> 0 | M5: ='SlimFix Reno+'!D11&" "&'SlimFix Reno+'!J11 -> SlimFix Reno+
A6: SlimFix Reno+ | B6: 3.0 | C6: =A6&" "&B6 -> SlimFix Reno+ 3 | D6: Schroef | E6: 6 | F6: 140xØ6 | J6: Horizontale RenoGoot S (1,95 m, RAL 7021)* | K6: Verticale RenoGoot S (1,6 m, RAL 7021)
A7: SlimFix Reno+ | B7: 3.5 | C7: SlimFix Reno+ 3,5 | D7: Schroef | E7: 6 | F7: 160xØ6 | J7: Horizontale RenoGoot S (1,95 m, RAL 7021)* | K7: Verticale RenoGoot S (1,6 m, RAL 7021)
A8: SlimFix Reno+ | B8: 4.0 | C8: SlimFix Reno+ 4 | D8: Schroef | E8: 6 | F8: 180xØ6 | J8: Horizontale RenoGoot M (1,95 m, RAL 7021)* | K8: Verticale RenoGoot M (1,6 m, RAL 7021)
A9: SlimFix Reno+ | B9: 4.5 | C9: SlimFix Reno+ 4,5 | D9: Schroef | E9: 6 | F9: 200xØ6 | J9: Horizontale RenoGoot M (1,95 m, RAL 7021)* | K9: Verticale RenoGoot M (1,6 m, RAL 7021)
A10: SlimFix Reno+ | B10: 5.0 | C10: SlimFix Reno+ 5 | D10: Schroef | E10: 6 | F10: 200xØ6 | J10: Horizontale RenoGoot M (1,95 m, RAL 7021)* | K10: Verticale RenoGoot M (1,6 m, RAL 7021)
A11: SlimFix Reno+ | B11: 6.3 | C11: SlimFix Reno+ 6,3 | D11: Schroef | E11: 6 | F11: 260xØ6 | J11: Horizontale RenoGoot L (1,95 m, RAL 7021)* | K11: Verticale RenoGoot L (1,6 m, RAL 7021)
A12: SlimFix Reno+ | B12: 7.0 | C12: SlimFix Reno+ 7 | D12: Schroef | E12: 6 | F12: 280xØ6 | J12: Horizontale RenoGoot L (1,95 m, RAL 7021)* | K12: Verticale RenoGoot L (1,6 m, RAL 7021)
A13: SlimFix Reno+ | B13: 8.0 | C13: SlimFix Reno+ 8 | D13: Schroef | E13: 6 | F13: 300xØ6 | J13: Horizontale RenoGoot L (1,95 m, RAL 7021)* | K13: Verticale RenoGoot L (1,6 m, RAL 7021)
A15: * Het Horizontale RenoGoot-pakket bevat: 6x Horizontale RenoGoot (bestaande uit een kopplaat en een gootdeel), 14x brackets (ter versteviging en koppeling) en 30x RVS-schroeven met verzonken kop Ø4 mm x 32 mm TX. ** Het Verticale RenoGoot-pakket bevat: 4x Verticale RenoGoot (bestaande uit een verholen goot en een afdekkap), 4x schuimrubberband (1,5 m) en 24x RVS-boorschroeven + rubberring Ø4.8 mm x 32 mm TX. Attentie: Bij gebruik van de RenoGoot altijd de SlimFix Reno+ platen met gootdetail bestellen.

Sheet lijst renotwin (hidden)
A1: Keuzevelden
D3: dakvlak 1 | E3: dakvlak 2 | F3: dakvlak 1 | G3: dakvlak 2
A4: type | B4: Type | D4: aantal elem. | E4: aantal elem. | F4: schroef tot. | G4: schroef tot. | K4: Afstand tussen schroeven in mm bij 67° bevestiging | L4: Benodigde lengte in mm RenoTwin schroef | N4: type
A5: SlimFix RenoTwin | B5: 82 | C5: =A5&" "&B5 -> SlimFix RenoTwin 82 | D5: =CEILING('SlimFix RenoTwin'!$D$32*'SlimFix RenoTwin'!$J$42/1000,1) -> 0 | E5: =CEILING('SlimFix RenoTwin'!$D$51*'SlimFix RenoTwin'!$J$57/1000,1) -> 0 | F5: =((D5*'SlimFix RenoTwin'!$D$35))*3 -> 0 | G5: =((E5*'SlimFix RenoTwin'!D53))*3 -> 0 | H5: Horizontale RenoGoot S (1,95 m, RAL 7021)* | I5: Verticale RenoGoot S (1,6 m, RAL 7021) | K5: (100 | L5: 8x255 | N5: ='SlimFix RenoTwin'!D11&" "&'SlimFix RenoTwin'!J11 -> SlimFix RenoTwin
A6: SlimFix RenoTwin | B6: 97 | C6: SlimFix RenoTwin 97 | H6: Horizontale RenoGoot S (1,95 m, RAL 7021)* | I6: Verticale RenoGoot S (1,6 m, RAL 7021) | K6: (115 | L6: 8x275
A7: SlimFix RenoTwin | B7: 114 | C7: SlimFix RenoTwin 114 | H7: Horizontale RenoGoot M (1,95 m, RAL 7021)* | I7: Verticale RenoGoot M (1,6 m, RAL 7021) | K7: (125 | L7: 8x302
A8: SlimFix RenoTwin | B8: 129 | C8: SlimFix RenoTwin 129 | H8: Horizontale RenoGoot M (1,95 m, RAL 7021)* | I8: Verticale RenoGoot M (1,6 m, RAL 7021) | K8: (125 | L8: 8x302
A9: SlimFix RenoTwin | B9: 141 | C9: SlimFix RenoTwin 141 | H9: Horizontale RenoGoot L (1,95 m, RAL 7021)* | I9: Verticale RenoGoot L (1,6 m, RAL 7021) | K9: (140 | L9: 8x335
A10: SlimFix RenoTwin | B10: 166 | C10: SlimFix RenoTwin 166 | H10: Horizontale RenoGoot L (1,95 m, RAL 7021)* | I10: Verticale RenoGoot L (1,6 m, RAL 7021) | K10: (140 | L10: 8x365
A11: SlimFix RenoTwin | B11: 180 | C11: SlimFix RenoTwin 180 | H11: Horizontale RenoGoot L (1,95 m, RAL 7021)* | I11: Verticale RenoGoot L (1,6 m, RAL 7021) | K11: (150 | L11: 8x365
A12: SlimFix RenoTwin | B12: 188 | C12: =A12&" "&B12 -> SlimFix RenoTwin 188 | H12: Horizontale RenoGoot L (1,95 m, RAL 7021)* | I12: Verticale RenoGoot L (1,6 m, RAL 7021) | K12: (150 | L12: 8x365
A13: SlimFix RenoTwin | B13: 195 | C13: SlimFix RenoTwin 195 | H13: Horizontale RenoGoot L (1,95 m, RAL 7021)* | I13: Verticale RenoGoot L (1,6 m, RAL 7021) | K13: (150 | L13: 8x365
A14: SlimFix RenoTwin | B14: 224 | C14: SlimFix RenoTwin 224 | H14: Horizontale RenoGoot L (1,95 m, RAL 7021)* | K14: (160 | L14: 8x397
A15: SlimFix RenoTwin | B15: 258 | C15: SlimFix RenoTwin 258 | K15: (180 | L15: 8x435
A19: * Het Horizontale RenoGoot-pakket bevat: 6x Horizontale RenoGoot (bestaande uit een kopplaat en een gootdeel), 14x brackets (ter versteviging en koppeling) en 30x RVS-schroeven met verzonken kop Ø4 mm x 32 mm TX. ** Het Verticale RenoGoot-pakket bevat: 4x Verticale RenoGoot (bestaande uit een verholen goot en een afdekkap), 4x schuimrubberband (1,5 m) en 24x RVS-boorschroeven + rubberring Ø4.8 mm x 32 mm TX. Attentie: Bij gebruik van de RenoGoot altijd de SlimFix Reno+ platen met gootdetail bestellen.
A27: type | C27: doorbuiging | D27: dakpakket | E27: schroef | F27: RC | G27: doorbuiging | H27: pakket | J27: schroef | K27: eenheid
A28: SlimFix RenoTwin 114 | B28: =CONCATENATE(A28&C28&D28) -> SlimFix RenoTwin 114022 | C28: 0 | D28: 22 | E28: 8x225 | F28: 3.92 | G28: _kies | H28: _kies | J28: 8x195 | K28: 50st./ds | L28: 50
A29: SlimFix RenoTwin 114 | B29: SlimFix RenoTwin 114040 | C29: 0 | D29: 40 | E29: 8x225 | F29: 4.76 | G29: 0 | H29: 22 | J29: 8x225 | K29: 50st./ds | L29: 50
A30: SlimFix RenoTwin 114 | B30: SlimFix RenoTwin 114050 | C30: 0 | D30: 50 | E30: 8x235 | F30: 4.98 | G30: 20 | H30: 40 | J30: 8x235 | K30: 50st./ds | L30: 50
A31: SlimFix RenoTwin 114 | B31: SlimFix RenoTwin 114060 | C31: 0 | D31: 60 | E31: 8x255 | F31: 5.20 | G31: 30 | H31: 50 | J31: 8x255 | K31: 50st./ds | L31: 50
A32: SlimFix RenoTwin 114 | B32: SlimFix RenoTwin 114070 | C32: 0 | D32: 70 | E32: 8x255 | F32: 5.42 | H32: 60 | J32: 8x275 | K32: 50st./ds | L32: 50
A33: SlimFix RenoTwin 114 | B33: SlimFix RenoTwin 1142022 | C33: 20 | D33: 22 | E33: 8x235 | F33: 4.32 | H33: 70 | J33: 8x302 | K33: 50st./ds | L33: 50
A34: SlimFix RenoTwin 114 | B34: SlimFix RenoTwin 1142040 | C34: 20 | D34: 40 | E34: 8x255 | F34: 4.76 | G34: _kies | J34: 8x335 | K34: 50st./ds | L34: 50
A35: SlimFix RenoTwin 114 | B35: SlimFix RenoTwin 1142050 | C35: 20 | D35: 50 | E35: 8x255 | F35: 4.98 | G35: Ja | J35: 8x365 | K35: 50st./ds | L35: 50
A36: SlimFix RenoTwin 114 | B36: SlimFix RenoTwin 1142060 | C36: 20 | D36: 60 | E36: 8x275 | F36: 5.20 | G36: Nee | J36: 8x397 | K36: 50st./ds | L36: 50
A37: SlimFix RenoTwin 114 | B37: SlimFix RenoTwin 1142070 | C37: 20 | D37: 70 | E37: 8x275 | F37: 5.42 | J37: 8x435 | K37: 25st./ds | L37: 25
A38: SlimFix RenoTwin 114 | B38: SlimFix RenoTwin 1143022 | C38: 30 | D38: 22 | E38: 8x255 | F38: 4.32 | J38: 8x472 | K38: 25st./ds | L38: 25
A39: SlimFix RenoTwin 114 | B39: SlimFix RenoTwin 1143040 | C39: 30 | D39: 40 | E39: 8x255 | F39: 4.76 | J39: n.v.t.
A40: SlimFix RenoTwin 114 | B40: SlimFix RenoTwin 1143050 | C40: 30 | D40: 50 | E40: 8x275 | F40: 4.98
A41: SlimFix RenoTwin 114 | B41: SlimFix RenoTwin 1143060 | C41: 30 | D41: 60 | E41: 8x275 | F41: 5.20
A42: SlimFix RenoTwin 114 | B42: SlimFix RenoTwin 1143070 | C42: 30 | D42: 70 | E42: 8x302 | F42: 5.42 | I42: dakvlak 1
A43: SlimFix RenoTwin 129 | B43: SlimFix RenoTwin 129022 | C43: 0 | D43: 22 | E43: 8x225 | F43: 4.42 | I43: ='SlimFix RenoTwin'!D40 -> _kies | J43: 0 | K43: 20 | L43: 30
A44: SlimFix RenoTwin 129 | B44: SlimFix RenoTwin 129040 | C44: 0 | D44: 40 | E44: 8x255 | F44: 5.26 | I44: _kies
A45: SlimFix RenoTwin 129 | B45: SlimFix RenoTwin 129050 | C45: 0 | D45: 50 | E45: 8x255 | F45: 5.48 | I45: =IF(HLOOKUP($I$43,$J$43:$L$49,3)>0,HLOOKUP($I$43,$J$43:$L$49,3)," ") ->  | J45: 22 | K45: 22 | L45: 22
A46: SlimFix RenoTwin 129 | B46: SlimFix RenoTwin 129060 | C46: 0 | D46: 60 | E46: 8x275 | F46: 5.70 | I46: =IF(HLOOKUP($I$43,$J$43:$L$49,4)>0,HLOOKUP($I$43,$J$43:$L$49,4)," ") ->  | J46: 40 | K46: 40 | L46: 40
A47: SlimFix RenoTwin 129 | B47: SlimFix RenoTwin 129070 | C47: 0 | D47: 70 | E47: 8x275 | F47: 5.92 | I47: =IF(HLOOKUP($I$43,$J$43:$L$49,5)>0,HLOOKUP($I$43,$J$43:$L$49,5)," ") ->  | J47: 50 | K47: 50 | L47: 50
A48: SlimFix RenoTwin 129 | B48: SlimFix RenoTwin 1292022 | C48: 20 | D48: 22 | E48: 8x255 | F48: 4.82 | I48: =IF(HLOOKUP($I$43,$J$43:$L$49,6)>0,HLOOKUP($I$43,$J$43:$L$49,6)," ") ->  | J48: 60 | K48: 60 | L48: 60
A49: SlimFix RenoTwin 129 | B49: SlimFix RenoTwin 1292040 | C49: 20 | D49: 40 | E49: 8x275 | F49: 5.26 | I49: =IF(HLOOKUP($I$43,$J$43:$L$49,7)>0,HLOOKUP($I$43,$J$43:$L$49,7)," ") ->  | J49: 70 | K49: 70 | L49: 70
A50: SlimFix RenoTwin 129 | B50: SlimFix RenoTwin 1292050 | C50: 20 | D50: 50 | E50: 8x275 | F50: 5.48 | I50: dakvlak 2
A51: SlimFix RenoTwin 129 | B51: SlimFix RenoTwin 1292060 | C51: 20 | D51: 60 | E51: 8x302 | F51: 5.70 | I51: ='SlimFix RenoTwin'!D55 -> _kies | J51: 0 | K51: 20 | L51: 30
A52: SlimFix RenoTwin 129 | B52: SlimFix RenoTwin 1292070 | C52: 20 | D52: 70 | E52: 8x302 | F52: 5.92 | I52: _kies
A53: SlimFix RenoTwin 129 | B53: SlimFix RenoTwin 1293022 | C53: 30 | D53: 22 | E53: 8x255 | F53: 4.82 | I53: =IF(HLOOKUP($I$51,$J$51:$L$57,3)>0,HLOOKUP($I$51,$J$51:$L$57,3)," ") ->  | J53: 22 | K53: 22 | L53: 22
A54: SlimFix RenoTwin 129 | B54: SlimFix RenoTwin 1293040 | C54: 30 | D54: 40 | E54: 8x275 | F54: 5.26 | I54: =IF(HLOOKUP($I$51,$J$51:$L$57,4)>0,HLOOKUP($I$51,$J$51:$L$57,4)," ") ->  | J54: 40 | K54: 40 | L54: 40
A55: SlimFix RenoTwin 129 | B55: SlimFix RenoTwin 1293050 | C55: 30 | D55: 50 | E55: 8x302 | F55: 5.48 | I55: =IF(HLOOKUP($I$51,$J$51:$L$57,5)>0,HLOOKUP($I$51,$J$51:$L$57,5)," ") ->  | J55: 50 | K55: 50 | L55: 50
A56: SlimFix RenoTwin 129 | B56: SlimFix RenoTwin 1293060 | C56: 30 | D56: 60 | E56: 8x302 | F56: 5.70 | I56: =IF(HLOOKUP($I$51,$J$51:$L$57,6)>0,HLOOKUP($I$51,$J$51:$L$57,6)," ") ->  | J56: 60 | K56: 60 | L56: 60
A57: SlimFix RenoTwin 129 | B57: SlimFix RenoTwin 1293070 | C57: 30 | D57: 70 | E57: 8x302 | F57: 5.92 | I57: =IF(HLOOKUP($I$51,$J$51:$L$57,7)>0,HLOOKUP($I$51,$J$51:$L$57,7)," ") ->  | J57: 70 | K57: 70 | L57: 70
A58: SlimFix RenoTwin 141 | B58: SlimFix RenoTwin 141022 | C58: 0 | D58: 22 | E58: 8x235 | F58: 4.82
A59: SlimFix RenoTwin 141 | B59: SlimFix RenoTwin 141040 | C59: 0 | D59: 40 | E59: 8x255 | F59: 5.66
A60: SlimFix RenoTwin 141 | B60: SlimFix RenoTwin 141050 | C60: 0 | D60: 50 | E60: 8x275 | F60: 5.88 | I60: Type | J60: Afstand tussen schroeven in mm bij 67° bevestiging | K60: Benodigde lengte in mm RenoTwin schroef
A61: SlimFix RenoTwin 141 | B61: SlimFix RenoTwin 141060 | C61: 0 | D61: 60 | E61: 8x275 | F61: 6.10 | I61: RenoTwin 3.5 | J61: (100 | K61: 255
A62: SlimFix RenoTwin 141 | B62: SlimFix RenoTwin 141070 | C62: 0 | D62: 70 | E62: 8x302 | F62: 6.32 | I62: RenoTwin 4.0 | J62: (115 | K62: 275
A63: SlimFix RenoTwin 141 | B63: SlimFix RenoTwin 1412022 | C63: 20 | D63: 22 | E63: 8x255 | F63: 5.22 | I63: RenoTwin 4.5 | J63: (125 | K63: 302
A64: SlimFix RenoTwin 141 | B64: SlimFix RenoTwin 1412040 | C64: 20 | D64: 40 | E64: 8x275 | F64: 5.66 | I64: RenoTwin 5.0 | J64: (125 | K64: 302
A65: SlimFix RenoTwin 141 | B65: SlimFix RenoTwin 1412050 | C65: 20 | D65: 50 | E65: 8x302 | F65: 5.88 | I65: RenoTwin 5.5 | J65: (140 | K65: 335
A66: SlimFix RenoTwin 141 | B66: SlimFix RenoTwin 1412060 | C66: 20 | D66: 60 | E66: 8x302 | F66: 6.10 | I66: RenoTwin 6.3 | J66: 140 | K66: 365
A67: SlimFix RenoTwin 141 | B67: SlimFix RenoTwin 1412070 | C67: 20 | D67: 70 | E67: 8x302 | F67: 6.32 | I67: RenoTwin 6.7 | J67: 150 | K67: 365
A68: SlimFix RenoTwin 141 | B68: SlimFix RenoTwin 1413022 | C68: 30 | D68: 22 | E68: 8x275 | F68: 5.22 | I68: RenoTwin 7.0 | J68: 150 | K68: 365
A69: SlimFix RenoTwin 141 | B69: SlimFix RenoTwin 1413040 | C69: 30 | D69: 40 | E69: 8x302 | F69: 5.66 | I69: RenoTwin 8.0 | J69: 160 | K69: 397
A70: SlimFix RenoTwin 141 | B70: SlimFix RenoTwin 1413050 | C70: 30 | D70: 50 | E70: 8x302 | F70: 5.88 | I70: RenoTwin 9.0 | J70: 180 | K70: 435
A71: SlimFix RenoTwin 141 | B71: SlimFix RenoTwin 1413060 | C71: 30 | D71: 60 | E71: 8x302 | F71: 6.10
A72: SlimFix RenoTwin 141 | B72: SlimFix RenoTwin 1413070 | C72: 30 | D72: 70 | E72: 8x335 | F72: 6.32
A73: SlimFix RenoTwin 166 | B73: SlimFix RenoTwin 166022 | C73: 0 | D73: 22 | E73: 8x275 | F73: 5.65
A74: SlimFix RenoTwin 166 | B74: SlimFix RenoTwin 166040 | C74: 0 | D74: 40 | E74: 8x302 | F74: 6.50
A75: SlimFix RenoTwin 166 | B75: SlimFix RenoTwin 166050 | C75: 0 | D75: 50 | E75: 8x302 | F75: 6.72
A76: SlimFix RenoTwin 166 | B76: SlimFix RenoTwin 166060 | C76: 0 | D76: 60 | E76: 8x302 | F76: 6.94
A77: SlimFix RenoTwin 166 | B77: SlimFix RenoTwin 166070 | C77: 0 | D77: 70 | E77: 8x335 | F77: 7.16
A78: SlimFix RenoTwin 166 | B78: SlimFix RenoTwin 1662022 | C78: 20 | D78: 22 | E78: 8x302 | F78: 6.06
A79: SlimFix RenoTwin 166 | B79: SlimFix RenoTwin 1662040 | C79: 20 | D79: 40 | E79: 8x302 | F79: 6.50
A80: SlimFix RenoTwin 166 | B80: SlimFix RenoTwin 1662050 | C80: 20 | D80: 50 | E80: 8x335 | F80: 6.72
A81: SlimFix RenoTwin 166 | B81: SlimFix RenoTwin 1662060 | C81: 20 | D81: 60 | E81: 8x335 | F81: 6.94
A82: SlimFix RenoTwin 166 | B82: SlimFix RenoTwin 1662070 | C82: 20 | D82: 70 | E82: 8x335 | F82: 7.16
A83: SlimFix RenoTwin 166 | B83: SlimFix RenoTwin 1663022 | C83: 30 | D83: 22 | E83: 8x302 | F83: 6.06
A84: SlimFix RenoTwin 166 | B84: SlimFix RenoTwin 1663040 | C84: 30 | D84: 40 | E84: 8x335 | F84: 6.50
A85: SlimFix RenoTwin 166 | B85: SlimFix RenoTwin 1663050 | C85: 30 | D85: 50 | E85: 8x335 | F85: 6.72
A86: SlimFix RenoTwin 166 | B86: SlimFix RenoTwin 1663060 | C86: 30 | D86: 60 | E86: 8x335 | F86: 6.94
A87: SlimFix RenoTwin 166 | B87: SlimFix RenoTwin 1663070 | C87: 30 | D87: 70 | E87: 8x365 | F87: 7.16
A88: SlimFix RenoTwin 180 | B88: SlimFix RenoTwin 180022 | C88: 0 | D88: 22 | E88: 8x275 | F88: 6.12
A89: SlimFix RenoTwin 180 | B89: SlimFix RenoTwin 180040 | C89: 0 | D89: 40 | E89: 8x302 | F89: 6.96
A90: SlimFix RenoTwin 180 | B90: SlimFix RenoTwin 180050 | C90: 0 | D90: 50 | E90: 8x302 | F90: 7.18
A91: SlimFix RenoTwin 180 | B91: SlimFix RenoTwin 180060 | C91: 0 | D91: 60 | E91: 8x335 | F91: 7.40
A92: SlimFix RenoTwin 180 | B92: =CONCATENATE(A92&C92&D92) -> SlimFix RenoTwin 180070 | C92: 0 | D92: 70 | E92: 8x335 | F92: 7.62
A93: SlimFix RenoTwin 180 | B93: SlimFix RenoTwin 1802022 | C93: 20 | D93: 22 | E93: 8x302 | F93: 6.52
A94: SlimFix RenoTwin 180 | B94: SlimFix RenoTwin 1802040 | C94: 20 | D94: 40 | E94: 8x335 | F94: 6.96
A95: SlimFix RenoTwin 180 | B95: SlimFix RenoTwin 1802050 | C95: 20 | D95: 50 | E95: 8x335 | F95: 7.18
A96: SlimFix RenoTwin 180 | B96: SlimFix RenoTwin 1802060 | C96: 20 | D96: 60 | E96: 8x335 | F96: 7.40
A97: SlimFix RenoTwin 180 | B97: SlimFix RenoTwin 1802070 | C97: 20 | D97: 70 | E97: 8x365 | F97: 7.62
A98: SlimFix RenoTwin 180 | B98: SlimFix RenoTwin 1803022 | C98: 30 | D98: 22 | E98: 8x302 | F98: 6.52
A99: SlimFix RenoTwin 180 | B99: SlimFix RenoTwin 1803040 | C99: 30 | D99: 40 | E99: 8x335 | F99: 6.96
A100: SlimFix RenoTwin 180 | B100: SlimFix RenoTwin 1803050 | C100: 30 | D100: 50 | E100: 8x335 | F100: 7.18
A101: SlimFix RenoTwin 180 | B101: SlimFix RenoTwin 1803060 | C101: 30 | D101: 60 | E101: 8x365 | F101: 7.40
A102: SlimFix RenoTwin 180 | B102: SlimFix RenoTwin 1803070 | C102: 30 | D102: 70 | E102: 8x365 | F102: 7.62
A103: SlimFix RenoTwin 188 | B103: SlimFix RenoTwin 188022 | C103: 0 | D103: 22 | E103: 8x302 | F103: 6.19
A104: SlimFix RenoTwin 188 | B104: SlimFix RenoTwin 188040 | C104: 0 | D104: 40 | E104: 8x302 | F104: 7.02
A105: SlimFix RenoTwin 188 | B105: SlimFix RenoTwin 188050 | C105: 0 | D105: 50 | E105: 8x335 | F105: 7.24
A106: SlimFix RenoTwin 188 | B106: SlimFix RenoTwin 188060 | C106: 0 | D106: 60 | E106: 8x335 | F106: 7.46
A107: SlimFix RenoTwin 188 | B107: =CONCATENATE(A107&C107&D107) -> SlimFix RenoTwin 188070 | C107: 0 | D107: 70 | E107: 8x335 | F107: 7.68
A108: SlimFix RenoTwin 188 | B108: SlimFix RenoTwin 1882022 | C108: 20 | D108: 22 | E108: 8x302 | F108: 6.58
A109: SlimFix RenoTwin 188 | B109: SlimFix RenoTwin 1882040 | C109: 20 | D109: 40 | E109: 8x335 | F109: 7.02
A110: SlimFix RenoTwin 188 | B110: SlimFix RenoTwin 1882050 | C110: 20 | D110: 50 | E110: 8x335 | F110: 7.24
A111: SlimFix RenoTwin 188 | B111: SlimFix RenoTwin 1882060 | C111: 20 | D111: 60 | E111: 8x365 | F111: 7.46
A112: SlimFix RenoTwin 188 | B112: SlimFix RenoTwin 1882070 | C112: 20 | D112: 70 | E112: 8x365 | F112: 7.68
A113: SlimFix RenoTwin 188 | B113: SlimFix RenoTwin 1883022 | C113: 30 | D113: 22 | E113: 8x335 | F113: 6.58
A114: SlimFix RenoTwin 188 | B114: SlimFix RenoTwin 1883040 | C114: 30 | D114: 40 | E114: 8x335 | F114: 7.02
A115: SlimFix RenoTwin 188 | B115: SlimFix RenoTwin 1883050 | C115: 30 | D115: 50 | E115: 8x365 | F115: 7.24
A116: SlimFix RenoTwin 188 | B116: SlimFix RenoTwin 1883060 | C116: 30 | D116: 60 | E116: 8x365 | F116: 7.46
A117: SlimFix RenoTwin 188 | B117: SlimFix RenoTwin 1883070 | C117: 30 | D117: 70 | E117: 8x365 | F117: 7.68
A118: SlimFix RenoTwin 195 | B118: SlimFix RenoTwin 195022 | C118: 0 | D118: 22 | E118: 8x302 | F118: 6.42
A119: SlimFix RenoTwin 195 | B119: SlimFix RenoTwin 195040 | C119: 0 | D119: 40 | E119: 8x335 | F119: 7.25
A120: SlimFix RenoTwin 195 | B120: SlimFix RenoTwin 195050 | C120: 0 | D120: 50 | E120: 8x335 | F120: 7.47
A121: SlimFix RenoTwin 195 | B121: SlimFix RenoTwin 195060 | C121: 0 | D121: 60 | E121: 8x335 | F121: 7.69
A122: SlimFix RenoTwin 195 | B122: SlimFix RenoTwin 195070 | C122: 0 | D122: 70 | E122: 8x335 | F122: 7.91
A123: SlimFix RenoTwin 195 | B123: SlimFix RenoTwin 1952022 | C123: 20 | D123: 22 | E123: 8x335 | F123: 6.83
A124: SlimFix RenoTwin 195 | B124: SlimFix RenoTwin 1952040 | C124: 20 | D124: 40 | E124: 8x335 | F124: 7.25
A125: SlimFix RenoTwin 195 | B125: SlimFix RenoTwin 1952050 | C125: 20 | D125: 50 | E125: 8x335 | F125: 7.47
A126: SlimFix RenoTwin 195 | B126: SlimFix RenoTwin 1952060 | C126: 20 | D126: 60 | E126: 8x365 | F126: 7.69
A127: SlimFix RenoTwin 195 | B127: SlimFix RenoTwin 1952070 | C127: 20 | D127: 70 | E127: 8x365 | F127: 7.91
A128: SlimFix RenoTwin 195 | B128: SlimFix RenoTwin 1953022 | C128: 30 | D128: 22 | E128: 8x335 | F128: 6.83
A129: SlimFix RenoTwin 195 | B129: SlimFix RenoTwin 1953040 | C129: 30 | D129: 40 | E129: 8x335 | F129: 7.25
A130: SlimFix RenoTwin 195 | B130: SlimFix RenoTwin 1953050 | C130: 30 | D130: 50 | E130: 8x365 | F130: 7.47
A131: SlimFix RenoTwin 195 | B131: SlimFix RenoTwin 1953060 | C131: 30 | D131: 60 | E131: 8x365 | F131: 7.69
A132: SlimFix RenoTwin 195 | B132: SlimFix RenoTwin 1953070 | C132: 30 | D132: 70 | E132: 8x365 | F132: 7.91
A133: SlimFix RenoTwin 224 | B133: SlimFix RenoTwin 224022 | C133: 0 | D133: 22 | E133: 8x335 | F133: 7.33
A134: SlimFix RenoTwin 224 | B134: SlimFix RenoTwin 224040 | C134: 0 | D134: 40 | E134: 8x335 | F134: 8.16
A135: SlimFix RenoTwin 224 | B135: SlimFix RenoTwin 224050 | C135: 0 | D135: 50 | E135: 8x365 | F135: 8.38
A136: SlimFix RenoTwin 224 | B136: SlimFix RenoTwin 224060 | C136: 0 | D136: 60 | E136: 8x365 | F136: 8.60
A137: SlimFix RenoTwin 224 | B137: SlimFix RenoTwin 224070 | C137: 0 | D137: 70 | E137: 8x365 | F137: 8.82
A138: SlimFix RenoTwin 224 | B138: SlimFix RenoTwin 2242022 | C138: 20 | D138: 22 | E138: 8x365 | F138: 7.72
A139: SlimFix RenoTwin 224 | B139: SlimFix RenoTwin 2242040 | C139: 20 | D139: 40 | E139: 8x365 | F139: 8.16
A140: SlimFix RenoTwin 224 | B140: SlimFix RenoTwin 2242050 | C140: 20 | D140: 50 | E140: 8x365 | F140: 8.38
A141: SlimFix RenoTwin 224 | B141: SlimFix RenoTwin 2242060 | C141: 20 | D141: 60 | E141: 8x397 | F141: 8.60
A142: SlimFix RenoTwin 224 | B142: SlimFix RenoTwin 2242070 | C142: 20 | D142: 70 | E142: 8x397 | F142: 8.82
A143: SlimFix RenoTwin 224 | B143: SlimFix RenoTwin 2243022 | C143: 30 | D143: 22 | E143: 8x365 | F143: 7.72
A144: SlimFix RenoTwin 224 | B144: SlimFix RenoTwin 2243040 | C144: 30 | D144: 40 | E144: 8x365 | F144: 8.16
A145: SlimFix RenoTwin 224 | B145: SlimFix RenoTwin 2243050 | C145: 30 | D145: 50 | E145: 8x397 | F145: 8.38
A146: SlimFix RenoTwin 224 | B146: SlimFix RenoTwin 2243060 | C146: 30 | D146: 60 | E146: 8x397 | F146: 8.60
A147: SlimFix RenoTwin 224 | B147: SlimFix RenoTwin 2243070 | C147: 30 | D147: 70 | E147: 8x397 | F147: 8.82
A148: SlimFix RenoTwin 258 | B148: SlimFix RenoTwin 258022 | C148: 0 | D148: 22 | E148: 8x365 | F148: 8.41
A149: SlimFix RenoTwin 258 | B149: SlimFix RenoTwin 258040 | C149: 0 | D149: 40 | E149: 8x397 | F149: 9.24
A150: SlimFix RenoTwin 258 | B150: SlimFix RenoTwin 258050 | C150: 0 | D150: 50 | E150: 8x397 | F150: 9.46
A151: SlimFix RenoTwin 258 | B151: SlimFix RenoTwin 258060 | C151: 0 | D151: 60 | E151: 8x397 | F151: 9.68
A152: SlimFix RenoTwin 258 | B152: SlimFix RenoTwin 258070 | C152: 0 | D152: 70 | E152: 8x435 | F152: 9.90
A153: SlimFix RenoTwin 258 | B153: SlimFix RenoTwin 2582022 | C153: 20 | D153: 22 | E153: 8x397 | F153: 8.80
A154: SlimFix RenoTwin 258 | B154: SlimFix RenoTwin 2582040 | C154: 20 | D154: 40 | E154: 8x397 | F154: 9.24
A155: SlimFix RenoTwin 258 | B155: SlimFix RenoTwin 2582050 | C155: 20 | D155: 50 | E155: 8x435 | F155: 9.46
A156: SlimFix RenoTwin 258 | B156: SlimFix RenoTwin 2582060 | C156: 20 | D156: 60 | E156: 8x435 | F156: 9.68
A157: SlimFix RenoTwin 258 | B157: SlimFix RenoTwin 2582070 | C157: 20 | D157: 70 | E157: 8x435 | F157: 9.90
A158: SlimFix RenoTwin 258 | B158: SlimFix RenoTwin 2583022 | C158: 30 | D158: 22 | E158: 8x397 | F158: 8.80
A159: SlimFix RenoTwin 258 | B159: SlimFix RenoTwin 2583040 | C159: 30 | D159: 40 | E159: 8x435 | F159: 9.24
A160: SlimFix RenoTwin 258 | B160: SlimFix RenoTwin 2583050 | C160: 30 | D160: 50 | E160: 8x435 | F160: 9.46
A161: SlimFix RenoTwin 258 | B161: SlimFix RenoTwin 2583060 | C161: 30 | D161: 60 | E161: 8x435 | F161: 9.68
A162: SlimFix RenoTwin 258 | B162: SlimFix RenoTwin 2583070 | C162: 30 | D162: 70 | E162: 8x435 | F162: 9.90
A163: SlimFix RenoTwin 82 | B163: SlimFix RenoTwin 82022 | C163: 0 | D163: 22 | E163: 8x195 | F163: 2.85
A164: SlimFix RenoTwin 82 | B164: SlimFix RenoTwin 82040 | C164: 0 | D164: 40 | E164: 8x195 | F164: 3.70
A165: SlimFix RenoTwin 82 | B165: SlimFix RenoTwin 82050 | C165: 0 | D165: 50 | E165: 8x225 | F165: 3.92
A166: SlimFix RenoTwin 82 | B166: SlimFix RenoTwin 82060 | C166: 0 | D166: 60 | E166: 8x225 | F166: 4.14
A167: SlimFix RenoTwin 82 | B167: SlimFix RenoTwin 82070 | C167: 0 | D167: 70 | E167: 8x225 | F167: 4.36
A168: SlimFix RenoTwin 82 | B168: SlimFix RenoTwin 822022 | C168: 20 | D168: 22 | E168: 8x195 | F168: 3.26
A169: SlimFix RenoTwin 82 | B169: SlimFix RenoTwin 822040 | C169: 20 | D169: 40 | E169: 8x225 | F169: 3.70
A170: SlimFix RenoTwin 82 | B170: SlimFix RenoTwin 822050 | C170: 20 | D170: 50 | E170: 8x225 | F170: 3.92
A171: SlimFix RenoTwin 82 | B171: =CONCATENATE(A171&C171&D171) -> SlimFix RenoTwin 822060 | C171: 20 | D171: 60 | E171: 8x235 | F171: 4.14
A172: SlimFix RenoTwin 82 | B172: SlimFix RenoTwin 822070 | C172: 20 | D172: 70 | E172: 8x255 | F172: 4.36
A173: SlimFix RenoTwin 82 | B173: SlimFix RenoTwin 823022 | C173: 30 | D173: 22 | E173: 8x225 | F173: 3.26
A174: SlimFix RenoTwin 82 | B174: SlimFix RenoTwin 823040 | C174: 30 | D174: 40 | E174: 8x225 | F174: 3.70
A175: SlimFix RenoTwin 82 | B175: SlimFix RenoTwin 823050 | C175: 30 | D175: 50 | E175: 8x235 | F175: 3.92
A176: SlimFix RenoTwin 82 | B176: SlimFix RenoTwin 823060 | C176: 30 | D176: 60 | E176: 8x255 | F176: 4.14
A177: SlimFix RenoTwin 82 | B177: SlimFix RenoTwin 823070 | C177: 30 | D177: 70 | E177: 8x255 | F177: 4.36
A178: SlimFix RenoTwin 97 | B178: SlimFix RenoTwin 97022 | C178: 0 | D178: 22 | E178: 8x195 | F178: 3.35
A179: SlimFix RenoTwin 97 | B179: SlimFix RenoTwin 97040 | C179: 0 | D179: 40 | E179: 8x225 | F179: 4.20
A180: SlimFix RenoTwin 97 | B180: SlimFix RenoTwin 97050 | C180: 0 | D180: 50 | E180: 8x225 | F180: 4.42
A181: SlimFix RenoTwin 97 | B181: SlimFix RenoTwin 97060 | C181: 0 | D181: 60 | E181: 8x235 | F181: 4.64
A182: SlimFix RenoTwin 97 | B182: SlimFix RenoTwin 97070 | C182: 0 | D182: 70 | E182: 8x255 | F182: 4.86
A183: SlimFix RenoTwin 97 | B183: SlimFix RenoTwin 972022 | C183: 20 | D183: 22 | E183: 8x225 | F183: 3.76
A184: SlimFix RenoTwin 97 | B184: SlimFix RenoTwin 972040 | C184: 20 | D184: 40 | E184: 8x235 | F184: 4.20
A185: SlimFix RenoTwin 97 | B185: SlimFix RenoTwin 972050 | C185: 20 | D185: 50 | E185: 8x255 | F185: 4.42
A186: SlimFix RenoTwin 97 | B186: SlimFix RenoTwin 972060 | C186: 20 | D186: 60 | E186: 8x255 | F186: 4.64
A187: SlimFix RenoTwin 97 | B187: SlimFix RenoTwin 972070 | C187: 20 | D187: 70 | E187: 8x275 | F187: 4.86
A188: SlimFix RenoTwin 97 | B188: SlimFix RenoTwin 973022 | C188: 30 | D188: 22 | E188: 8x225 | F188: 3.76
A189: SlimFix RenoTwin 97 | B189: SlimFix RenoTwin 973040 | C189: 30 | D189: 40 | E189: 8x255 | F189: 4.20
A190: SlimFix RenoTwin 97 | B190: SlimFix RenoTwin 973050 | C190: 30 | D190: 50 | E190: 8x255 | F190: 4.42
A191: SlimFix RenoTwin 97 | B191: SlimFix RenoTwin 973060 | C191: 30 | D191: 60 | E191: 8x275 | F191: 4.64
A192: SlimFix RenoTwin 97 | B192: SlimFix RenoTwin 973070 | C192: 30 | D192: 70 | E192: 8x275 | F192: 4.86
A193: SlimFix RenoTwin Solar 114 | B193: SlimFix RenoTwin Solar 114022 | C193: 0 | D193: 22 | E193: 8x225
A194: SlimFix RenoTwin Solar 114 | B194: SlimFix RenoTwin Solar 114040 | C194: 0 | D194: 40 | E194: 8x225
A195: SlimFix RenoTwin Solar 114 | B195: SlimFix RenoTwin Solar 114050 | C195: 0 | D195: 50 | E195: 8x235
A196: SlimFix RenoTwin Solar 114 | B196: SlimFix RenoTwin Solar 114060 | C196: 0 | D196: 60 | E196: 8x255
A197: SlimFix RenoTwin Solar 114 | B197: SlimFix RenoTwin Solar 114070 | C197: 0 | D197: 70 | E197: 8x255
A198: SlimFix RenoTwin Solar 114 | B198: SlimFix RenoTwin Solar 1142022 | C198: 20 | D198: 22 | E198: 8x235
A199: SlimFix RenoTwin Solar 114 | B199: SlimFix RenoTwin Solar 1142040 | C199: 20 | D199: 40 | E199: 8x255
A200: SlimFix RenoTwin Solar 114 | B200: SlimFix RenoTwin Solar 1142050 | C200: 20 | D200: 50 | E200: 8x255
A201: SlimFix RenoTwin Solar 114 | B201: SlimFix RenoTwin Solar 1142060 | C201: 20 | D201: 60 | E201: 8x275
A202: SlimFix RenoTwin Solar 114 | B202: SlimFix RenoTwin Solar 1142070 | C202: 20 | D202: 70 | E202: 8x275
A203: SlimFix RenoTwin Solar 114 | B203: SlimFix RenoTwin Solar 1143022 | C203: 30 | D203: 22 | E203: 8x255
A204: SlimFix RenoTwin Solar 114 | B204: SlimFix RenoTwin Solar 1143040 | C204: 30 | D204: 40 | E204: 8x255
A205: SlimFix RenoTwin Solar 114 | B205: SlimFix RenoTwin Solar 1143050 | C205: 30 | D205: 50 | E205: 8x275
A206: SlimFix RenoTwin Solar 114 | B206: SlimFix RenoTwin Solar 1143060 | C206: 30 | D206: 60 | E206: 8x275
A207: SlimFix RenoTwin Solar 114 | B207: SlimFix RenoTwin Solar 1143070 | C207: 30 | D207: 70 | E207: 8x302
A208: SlimFix RenoTwin Solar 129 | B208: SlimFix RenoTwin Solar 129022 | C208: 0 | D208: 22 | E208: 8x225
A209: SlimFix RenoTwin Solar 129 | B209: SlimFix RenoTwin Solar 129040 | C209: 0 | D209: 40 | E209: 8x255
A210: SlimFix RenoTwin Solar 129 | B210: SlimFix RenoTwin Solar 129050 | C210: 0 | D210: 50 | E210: 8x255
A211: SlimFix RenoTwin Solar 129 | B211: SlimFix RenoTwin Solar 129060 | C211: 0 | D211: 60 | E211: 8x275
... 131 more rows
